Workbook

Sheet Cover Page
K2: Template version 25.1a (for incinerators) - 27/11/25
K4: Note that there is another version of this template available for co-incinerators
K13: Notes:
K14: This template may require adjustments by individual operators to meet specific reporting requirements as defined in the site Permit(s)
B29: Annual Performance Report 2025
B31: Permit EPR/WP3239SJ
B33: Tyseley Energy from Waste Plant
B37: VEOLIA ES Birmingham Limited
B39: Year: | C39: 2025
B41: Address: | C41: James Road, Tyseley, Birmingham, B11 2BA
B43: Tel: | C43: 0203 9567 3740
B45: Email: | C45: christine.skaramaga@veolia.com
B47: Prepared by: | C47: Christine Skaramaga | F47: Position: | G47: Senior Environmental Engineer
B49: Approved by: | C49: Paull Collier | F49: Position: | G49: Plant Manager
B51: Version: | C51: 1
B53: Issue Date: | C53: 2026-01-31

Sheet Facility Info
A1: =+'Cover Page'!$B$29 -> Annual Performance Report 2025 | E1: =+'Cover Page'!$B$33 -> Tyseley Energy from Waste Plant
A3: Plant Description and Design | K3: Notes:
A5: The main purpose of the activity carried out at this facility is to incinerate, primarily, Municipal Solid Waste (MSW) as defined by EWC 20 03 01, recovering energy in the form of steam and electricity generating 27 MW for export to the National Grid. The permit covers the site and the entire incineration process which includes all incineration lines, waste reception and storage, waste-fuel and air supply systems, boilers, facilities for the treatment of exhaust gases, on-site facilities for handling and storage of residues and operations, recording and monitoring conditions. | K5: Include summary of plant design, design capacity, no. of combustion lines, electrical and heat capacity and any other general information that describes the facility, its location and purpose
A20: Summary of Operational Processes and Procedures
A22: This facility consists of two incineration lines, each capable of processing approximately 23.5 tonnes per hour, which takes approximately 350,000 tonnes of Birmingham’s waste each year but this, is dependent on two factors: actual operating hours and calorific value of the waste being burnt. The third incineration line processes clinical waste and other designated hazardous wastes (CWI) at a nominal rate of 600kg/hour. All emissions to air from the two 80m high chimneys are controlled to meet the emission limits included in the Environmental Permit. The flue gases released into the atmosphere are continuously monitored for Particulate Matter (total), TOC, Hydrogen Chloride, Oxides of Nitrogen, Carbon Monoxide, Ammonia, Sulphur Dioxide, Carbon Dioxide, Nitrous Oxide and flue gas flow. Bi-annual check monitoring of this equipment is carried out by approved contractors using indepent extractive sampling methods, at which time emissions of Heavy Metals, Dioxins and other substances are also monitored. The Continious Emissions Monitoring equipment (CEMs) was in service during 2023 for 100% of the plant operating time. This equipment is stringently monitored with routine calibration checks and is standardised to BS EN14181:2004. | K22: Include summary of key processes and procedures such as (but not limited to); waste reception, control rooms, grate, bed and boiler, energy & heat generation, cooling systems, residue management, emission controls, health and safety systems, maintenance

Sheet Operational Data
A1: =+'Cover Page'!$B$29 -> Annual Performance Report 2025 | E1: =+'Cover Page'!$B$33 -> Tyseley Energy from Waste Plant
A3: Operational Data
A4: Plant Size: | B4: 440500 | D4: tonnes pa | J4: Notes:
A5: Nominal net thermal input: | C5: MWth | J5: * Export capacity = nominal generation capacity at the generator terminals minus nominal parasitic load. ** CHP and district heating plants only - put N/A if no heat export. *** Combusted tonnage = tonnes delivered in period + (tonnes in bunker at start of period – tonnes in bunker at end of period), or equivalent calculation depending on plant type **** Availability Definition: The availability of a line is to be calculated by the number of hours the line reported Continuously Monitored emission levels to the Regulator through the calendar year divided by the total number of hours in that year. The overall plant availability is calculated as the mean of all lines in the plant. For clarity this includes periods of abnormal operation. Rationale: The primary function of an Energy from Waste facility is the disposal of waste. It follows therefore that the availability of a plant is determined by the period of time a facility spends undertaking this activity. *****NCV of waste: This should be completed for all plants which have a boiler. Calculate using total thermal power produced by boiler/boiler efficiency, or other suitable calculation.
A6: Nominal electrical export capacity*: | B6: 30 | C6: MWe
A7: Nominal heat export capacity**: | C7: MWth
A8: No. of combustion lines: | B8: 2 | C8: No. of steam turbines: | E8: 1
A10: Waste types received | B10: Unit | C10: Q1 | D10: Q2 | E10: Q3 | F10: Q4 | G10: Year Total | H10: %
A11: Household / Local Authority | B11: tonnes | C11: 83453 | D11: 81816 | E11: 75452 | F11: 88805 | G11: =SUM(C11:F11) -> 329526 | H11: =IF(G11>0,G11/$G$21,"-") -> 0.9367894678
A12: Commercial & Industrial | C12: 132 | D12: 84 | E12: 76 | F12: 163 | G12: =SUM(C12:F12) -> 455 | H12: 0.001293491888
A13: Hazardous | C13: 610 | D13: 619 | E13: 612 | F13: 689 | G13: 2530 | H13: 0.007192383465
A14: Clinical | C14: 967 | D14: 945 | E14: 747 | F14: 1486 | G14: 4145 | H14: 0.01178356896
A15: Waste wood (biomass) | G15: 0 | H15: -
A16: Refuse Derived Fuel (incl. SRF) - H'hold/LA | C16: 7241 | D16: 3969 | E16: 342 | F16: 3553 | G16: =SUM(C16:F16) -> 15105 | H16: 0.04294108784
A17: Refuse Derived Fuel (incl. SRF) - C&I | G17: 0 | H17: -
A18: Other [Please specify] | G18: 0 | H18: -
A19: Other [Please specify] | G19: 0 | H19: -
A20: Other [Please specify] | G20: 0 | H20: -
A21: Total waste received | C21: =SUM(C11:C20) -> 92403 | D21: =SUM(D11:D20) -> 87433 | E21: =SUM(E11:E20) -> 77229 | F21: =SUM(F11:F20) -> 94696 | G21: 351761
A22: Rejected Waste | G22: =SUM(C22:F22) -> 0 | H22: =IF(G22>0,G22/$G$21,"-") -> -
A23: Unprocessed waste transferred out | G23: =SUM(C23:F23) -> 0 | H23: =IF(G23>0,G23/$G$21,"-") -> -
A24: Total waste combusted *** | C24: 93900 | D24: 90674 | E24: 78816 | F24: 96453 | G24: =SUM(C24:F24) -> 359843
A26: Energy Usage / Export | B26: Unit | C26: Q1 | D26: Q2 | E26: Q3 | F26: Q4 | G26: Year Total | H26: KWh/te | J26: Password for protected cells A password has been set to prevent accidental editing of cells with formulae. If you still need to make an edit for some reason then the password = 1234
A27: Power generated at generator terminals | B27: MWh | C27: 51810 | D27: 53279 | E27: 133 | F27: 55208 | G27: =SUM(C27:F27) -> 160430 | H27: =IF(G27>0,G27*1000/$G$24,"-") -> 445.8333218
A28: Power exported to grid and other external user(s) | C28: 45414 | D28: 46130 | E28: 156 | F28: 47188 | G28: =SUM(C28:F28) -> 138888 | H28: =IF(G28>0,G28*1000/$G$24,"-") -> 385.9683251
A29: Power imported | C29: 0 | D29: 0 | E29: 7860.8 | F29: 492 | G29: 8352.8 | H29: =IF(G29>0,G29*1000/$G$24,"-") -> 23.21234538
A30: Indicative parasitic load | B30: % | C30: =IF(C27>0,(C27-C28)/C27,"-") -> 0.1234510712 | D30: =IF(D27>0,(D27-D28)/D27,"-") -> 0.1341804463 | E30: -0.1729323308 | F30: 0.1452688016 | G30: =IF(G27>0,1-G28/(G27+G29),"-") -> 0.1771199435
A31: Thermal Energy Exported ** | G31: =SUM(C31:F31) -> 0 | H31: =IF(G31>0,G31*1000/$G$24,"-") -> -
A32: R1 value (if applicable) | B32: R1 | C32: - | D32: - | E32: - | F32: - | G32: 0.6
A34: Waste Disposal & Recovery | B34: Unit | C34: Q1 | D34: Q2 | E34: Q3 | F34: Q4 | G34: Year Total | H34: % inputs
A35: APC Residues - produced | B35: tonnes | C35: 2136.56 | D35: 2173.62 | E35: 2031.82 | F35: 2301.4 | G35: =SUM(C35:F35) -> 8643.4 | H35: =IF(G35>0,G35/$G$24,"-") -> 0.0240199198
A36: IBA - produced | C36: 19625.52 | D36: 20190.16 | E36: 15718.06 | F36: 19868 | G36: 75401.74 | H36: =IF(G36>0,G36/$G$24,"-") -> 0.2095406608
A37: Metals recycling | C37: 848.76 | D37: 841.48 | E37: 1030.76 | F37: 984.87 | G37: =SUM(C37:F37) -> 3705.87 | H37: 0.01029857466
A38: Wooden Packaging | C38: 17.72 | D38: 19.74 | E38: 7.86 | F38: 22.44 | G38: =SUM(C38:F38) -> 67.76 | H38: 0.0001883043438
A39: Interceptor Waste | C39: 0 | D39: 0 | E39: 139.66 | F39: 0 | G39: 139.66 | H39: 0.0003881137051
A40: Other | C40: 0 | D40: 0 | E40: 0 | F40: 0 | G40: 0 | H40: -
A42: Raw Material Usage | B42: Unit | C42: Q1 | D42: Q2 | E42: Q3 | F42: Q4 | G42: Year Total | H42: Qty./te
A43: Mains Water | B43: ltrs | C43: 42248 | D43: 40809 | E43: 35379 | F43: 43526 | G43: =SUM(C43:F43) -> 161962 | H43: =IF(G43>0,G43/$G$24,"-") -> 0.450090734
A44: Other Water | B44: ltrs | G44: 0 | H44: =IF(G44>0,G44/$G$24,"-") -> -
A45: Ammonia | B45: kgs | C45: 179600 | D45: 111100 | E45: 150900 | F45: 123300 | G45: 564900 | H45: 1.569851296
A46: Urea | B46: kgs | G46: =SUM(C46:F46) -> 0 | H46: -
A47: Activated Carbon | B47: kgs | C47: 46500 | D47: 48800 | E47: 31600 | F47: 37900 | G47: 164800 | H47: 0.4579775069
A48: Lime / hydrated lime | B48: kgs | C48: 588000 | D48: 562000 | E48: 471000 | F48: 544000 | G48: 2165000 | H48: 6.016512757
A49: Fuel oil | B49: ltrs | C49: 289630 | D49: 325200 | E49: 305736 | F49: 368391 | G49: 1288957 | H49: 3.58199826
A50: Gas | B50: m3 | G50: 0 | H50: -
A51: Other | G51: 0 | H51: -
A53: Summary | B53: Line/Unit | C53: Q1 | D53: Q2 | E53: Q3 | F53: Q4 | G53: Year Total | I53: Hrs in year
A54: Availability of waste combustion by line, hrs **** | B54: 1 | C54: 2058.5 | D54: 2019 | E54: 1854 | F54: 2152 | G54: =SUM(C54:F54) -> 8083.5 | H54: =+G54/$I$54 -> 0.9227739726 | I54: 8760 | J54: Change this figure to 8784 in a leap year
B55: 2 | C55: 2043.5 | D55: 2038.5 | E55: 1624 | F55: 2114.5 | G55: 7820.5 | H55: =+G55/$I$54 -> 0.8927511416
B56: 3 | G56: 0 | H56: 0
B57: 4 | G57: 0 | H57: 0
B58: 5 | G58: =SUM(C58:F58) -> 0 | H58: 0
A59: Hours of turbine operations, hrs | B59: 1 | C59: 1875 | D59: 2184 | E59: 41 | F59: 2122 | G59: 6222 | H59: 0.7102739726
A60: Hours of turbine operations, hrs | B60: 2 | G60: 0 | H60: 0
A61: Hours of heat / steam export** | B61: hours | G61: 0 | H61: =IF(B61>0,G60/I54,"n/a") -> 0
A62: Net calorific value of waste***** | B62: MJ/kg
A63: Abnormal operation events | B63: qty. | G63: 0 | H63: =IF(G63>0,"yes","no") -> no
A64: Abnormal operation duration | B64: hours | G64: 0 | H64: =+(G64)/I54 -> 0
A65: Permit Breaches | B65: qty. | G65: 0 | H65: =IF(G65>0,"yes","no") -> no

Sheet Operational Summary
A1: =+'Cover Page'!$B$29 -> Annual Performance Report 2025 | E1: =+'Cover Page'!$B$33 -> Tyseley Energy from Waste Plant
A3: Summary of Plant Operations and Maintenance during the reporting year | K3: Notes:
A5: Annual outage and common outage NTD in various areas of the furnace & boiler Furnace pressure parts overhaul and refractory repairs/tiles replacement Superheater pressure parts and tubes replaced Drum internal repairs Grate overhaul ID & FD fans servicing Baghouse inspection, general condition of plenum chambers, pulse air gaskets & door seals replaced Replacement of flash bank air heater elements Stack inspections C14 stabbing flanges installed and analysers Calibrations of site instrumentation Reactor internal cleaning Structural steelwork replaced and ducting to AD modified New ID fan transformer FCD platework replacement External inspection of stack assembly and internal surveillance 3.3kV Switchboard new ID fan trip settings installed following transformer replacement Residue cranes, installation of new long travel and hoist inverters DCS/HMI service/inspection carried out, replacement of obsolete hardware parts Common water system feed pump and motor replaced 132kV transformer, inspection and service of the transformer and tap changer Turbine, gearbox, generator major outage Turbine control valve overhaul, inclusding new bushes, governor replacement, inlet nozzle repairs, diaphragm repairs, casing and split line repairs, accumulator overhaul, installation of 5 local transmitters and gauges to lube oil system, rotor balance, turbine bleed valves overhaul, alignment check Generator cryogenic cleaning, cooler element overhaul, exciter diodes replacement, bearing inspections, lube oil filtreation programme | K5: Include summary of key operational and/or maintenance activity undertaken in the year, such as any major component upgrades and/or replacements
A29: =+'Cover Page'!C39 -> 2025 | B29: Plant shut-downs
A30: Start date | B30: End date | C30: Reason for shut-down | K30: Provide a very brief reason for plant shut-down e.g. "Shut-down prior to major outage"; "Emergency shut-down due to boiler tube leak". All emergency shut-downs must be listed (irrespective of whether or not they were required to be reported to the EA). There is no need to include periods of hot-standby here (e.g. to clear feed chute hopper blockages). For clinical waste incinerators which require regular shut-downs for boiler cleaning, there is no need to record these here (only those prior to major outages, and emergency shut-downs).
A31: 2025-01-06 | B31: 2025-01-08 | C31: A1 & A2 Shut down for turbine work & grates
A32: 2025-01-13 | B32: 2025-01-13 | C32: A1 & A2 Shut down for turbine bearing
A33: 2025-01-16 | B33: 2025-01-16 | C33: A1 & A2 Shut down for turbine bearing
A34: 2025-03-05 | B34: 2025-04-05 | C34: A1 & A2 Shut down crane issues
A35: 2025-04-05 | B35: 2025-04-08 | C35: A1 Shut down for SH tube leak & grate repairs
A36: 2025-06-22 | B36: 2025-06-25 | C36: A2 Shut down for furnace tube leak
A37: 2025-06-27 | B37: 2025-07-13 | C37: A1 Shut down for annual outage
A38: 2025-07-01 | B38: 2025-07-21 | C38: A2 Shut down for annual outage
A39: 2025-11-10 | B39: 2025-11-12 | C39: A2 Shut down for grate repairs

Sheet Perf. Form 1
A1: =+'Cover Page'!C39 -> 2025 | B1: Annual Reporting Performance Form 1
A3: =+'Cover Page'!B31 -> Permit EPR/WP3239SJ | F3: Operator: | G3: =+'Cover Page'!B37 -> VEOLIA ES Birmingham Limited
A4: Facility: | B4: =+'Cover Page'!B33:I33 -> Tyseley Energy from Waste Plant | F4: Form: | G4: Performance 1
A6: Reporting Period from: | D6: 2025-01-01 | F6: to: | G6: 2025-12-31
A8: =+A1 -> 2025 | B8: Annual Reporting of Waste Disposal and Recovery
A9: Waste Description | C9: Disposal Route(s) | E9: Disposal Tonnes | G9: Recovery Tonnes | I9: % / tonne of waste incinerated
A10: 1) Hazardous Wastes
A11: APC Residues | C11: D09/D12 | E11: ='Operational Data'!G35 -> 8643.4 | I11: =IF((E11+G11)>0,(E11+G11)/'Operational Data'!$G$24, "-") -> 0.0240199198
A12: IBA | C12: D05 | E12: 200.68 | I12: =IF((E12+G12)>0,(E12+G12)/'Operational Data'!$G$24, "-") -> 0.0005576876582
A13: Interceptor Waste | C13: D09/D12 | E13: ='Operational Data'!G39 -> 139.66 | I13: =IF((E13+G13)>0,(E13+G13)/'Operational Data'!$G$24, "-") -> 0.0003881137051
I14: =IF((E14+G14)>0,(E14+G14)/'Operational Data'!$G$24, "-") -> -
A15: Total Hazardous Waste | E15: =SUM(E11:F14) -> 8983.74 | G15: =SUM(G11:H14) -> 0 | I15: =IF((E15+G15)>0,(E15+G15)/'Operational Data'!$G$24, "-") -> 0.02496572116
A17: 2) Non-Hazardous Wastes
A18: IBA | C18: R03 | G18: ='Operational Data'!G36-E12 -> 75201.06 | I18: =IF((E18+G18)>0,(E18+G18)/'Operational Data'!$G$24, "-") -> 0.2089829731
A19: Ferrous Metal | C19: R04 | G19: ='Operational Data'!G37 -> 3705.87 | I19: =IF((E19+G19)>0,(E19+G19)/'Operational Data'!$G$24, "-") -> 0.01029857466
A20: Process Water | E20: 78592 | G20: 83369 | I20: =IF((E20+G20)>0,(E20+G20)/'Operational Data'!$G$24, "-") -> 0.450087955
A21: Wooden Packaging | C21: R03 | G21: ='Operational Data'!G38 -> 67.76 | I21: =IF((E21+G21)>0,(E21+G21)/'Operational Data'!$G$24, "-") -> 0.0001883043438
I22: =IF((E22+G22)>0,(E22+G22)/'Operational Data'!$G$24, "-") -> -
A23: Total Non-Hazardous Waste | E23: =SUM(E18:F22) -> 78592 | G23: =SUM(G18:H22) -> 162343.69 | I23: =IF((E23+G23)>0,(E23+G23)/'Operational Data'!$G$24, "-") -> 0.6695578072
A24: TOTAL WASTE | E24: =+E23+E15 -> 87575.74 | G24: =+G23+G15 -> 162343.69 | I24: =IF((E24+G24)>0,(E24+G24)/'Operational Data'!$G$24, "-") -> 0.6945235283
A26: Operator’s comments :
A31: =+A1 -> 2025 | B31: Annual Reporting of Water and Other Raw Material Usage
A32: Raw Material | E32: Usage | G32: Unit | H32: Specific Usage | J32: Unit
A33: Mains Water | E33: =+'Operational Data'!G43/1000 -> 161.962 | G33: m3 | H33: =IF(E33>0,E33/'Operational Data'!$G$24,"-") -> 0.000450090734 | J33: m3/te
A34: Total Water | E34: =+'Operational Data'!G44+'Operational Data'!G43/1000 -> 161.962 | G34: m3 | H34: =IF(E34>0,E34/'Operational Data'!$G$24,"-") -> 0.000450090734 | J34: m3/te
A35: Urea / Ammonia | E35: =+'Operational Data'!G45 -> 564900 | G35: kg | H35: =IF(E35>0,E35/'Operational Data'!$G$24,"-") -> 1.569851296 | J35: kg/te
A36: Activated Carbon | E36: =+'Operational Data'!G47 -> 164800 | G36: kg | H36: =IF(E36>0,E36/'Operational Data'!$G$24,"-") -> 0.4579775069 | J36: kg/te
A37: Lime / hydrated lime / Sodium Bicarb. | E37: =+'Operational Data'!G48 -> 2165000 | G37: kg | H37: =IF(E37>0,E37/'Operational Data'!$G$24,"-") -> 6.016512757 | J37: kg/te
A38: Fuel Oil | E38: ='Operational Data'!G49/1000 -> 1288.957 | G38: m3 | H38: =IF(E38>0,E38/'Operational Data'!$G$49,"-") -> 0.001 | J38: m3/te
A39: Operator’s comments :
A43: =+A31 -> 2025 | B43: Annual Reporting of other performance indicators
A44: Parameter | C44: Results by Line
C45: A1 | D45: A2 | E45: A3 | F45: A4 | G45: A5 | I45: Turbine 1 | J45: Turbine 2
A46: Operating hours for the year, hours | C46: ='Operational Data'!G54 -> 8083.5 | D46: ='Operational Data'!G55 -> 7820.5 | I46: ='Operational Data'!G59 -> 6222
A47: Number of periods of abnormal operation, qty.
A48: Cumulative hours of abnormal operation for this year, hours
A50: Operator’s comments :
A54: Signed: | B54: Paul Collier | G54: Date: | H54: 2025-01-31

Sheet Energy Form 1
A1: =+'Cover Page'!C39 -> 2025 | B1: Annual Reporting of Energy Usage/Export
A3: =+'Cover Page'!B31 -> Permit EPR/WP3239SJ | F3: Operator: | G3: =+'Cover Page'!B37 -> VEOLIA ES Birmingham Limited
A5: Facility: | B5: =+'Cover Page'!B33:I33 -> Tyseley Energy from Waste Plant | F5: Form: | G5: Energy 1
A7: Reporting Period from: | D7: =+'Perf. Form 1'!D6:E6 -> 2025-01-01 | F7: to: | G7: =+'Perf. Form 1'!G6:H6 -> 2025-12-31
A9: Energy Source | D9: Energy Usage | F9: Unit | G9: Specific Usage (KWh/tonne incinerated
A10: Electricity Produced | D10: =+'Operational Data'!G27 -> 160430 | F10: MWh | G10: =+'Operational Data'!H27 -> 445.8333218
A11: Electricity Imported | D11: =+'Operational Data'!G29 -> 8352.8 | F11: MWh | G11: =+'Operational Data'!H29 -> 23.21234538
A12: Electricity Exported | D12: =+'Operational Data'!G28 -> 138888 | F12: MWh | G12: =+'Operational Data'!H28 -> 385.9683251
A13: Gas Oil | D13: ='Operational Data'!G49 -> 1288957 | F13: tonnes | G13: ='Operational Data'!H49 -> 3.58199826
A14: Steam/hot water exported | D14: =+'Operational Data'!G31 -> 0 | F14: GWh | G14: =+'Operational Data'!H31 -> -
A18: Operator’s comments :
A29: Signed: | B29: Paul Collier | G29: Date: | H29: 2025-01-31

Sheet Permit Compliance
A1: =+'Cover Page'!$B$29 -> Annual Performance Report 2025 | E1: =+'Cover Page'!$B$33 -> Tyseley Energy from Waste Plant
A3: Summary of Permit Compliance
A5: Compliance with permit limits for continuously monitored pollutants
A7: The plant met its emission limits as shown in the table below:
A8: Substance | C8: Percentage time compliant during operationNote 1 | L8: Notes:
C9: Half-hourly limit | F9: Daily limit | L9: Note 1: Please report to 2 decimal places, i.e. xx.xx% Note 2: Please enter into this table any permit non-compliances that the EA has given a CCS score for. Please also enter any other non-compliances which you have notified to the EA (e.g. ELV exceedances) but which have not yet been assessed by the EA. There is no need to enter any notifications which were subsequently assessed by the EA not to be permit breaches. Note 3: Please enter information here (rather than just referencing the notifications that were sent to the EA) including where relevant the incineration line reference, pollutant and value of the measured result for any ELV exceedances.
A10: Particulates | C10: 1 | F10: 1
A11: Oxides of nitrogen | C11: 1 | F11: 1
A12: Sulphur dioxide | C12: 1 | F12: 0.997
A13: Carbon monoxide | C13: xx.xx % or 100.00% 95% of 10-min averages | F13: 1
A14: Total organic carbon | C14: 1 | F14: 1
A15: Hydrogen chloride | C15: 1 | F15: 1
A16: Hydrogen fluoride | C16: 1 | F16: 1
C17: xx.xx % | F17: xx.xx %
A19: Summary of non-compliances under the permit Note 2
A20: Date | B20: Summary of non-compliance Note 3 | D20: Reason | G20: Measures taken to prevent reoccurrence | H20: CCS score if applicable*
H21: Impact | I21: Root cause
A22: 2025-01-14 | B22: Smoke | D22: Fire in refuse bunker | G22: Site procedures already in place followed during the incident | H22: None | I22: Waste
A23: 2025-07-19 | B23: SO2 daily ELV exceeded on Line 1 at 41,72mg/m3 against the daily ELV of 40mg/m3 | D23: Process spike | G23: Increased abatement (lime slurry) dosing, boiler load reduced, combustion air rations altered, waste picking from a different area of the refuse bunker | H23: 4 | I23: n/a
A27: *If the Environment Agency (EA) has given a Compliance Classification Scheme (CCS) score due to a permit non-compliance it should be entered here (CCS4 = No impact; CCS3 = Minor impact; CCS2 = Significant impact; CCS1 = Major impact). If the EA has not yet assessed a non-compliance which you have notified to them, these columns should be left blank. Enter N/A if no score was given for the root cause.
A29: Summary of any complaints received and actions to taken to resolve them.
A30: Date | B30: Summary of complaint [including Line/Reference] | E30: Reason (including whether substantiated by the operator or the EA) | H30: Measures taken to prevent reoccurrence

Sheet Improvements
A1: =+'Cover Page'!$B$29 -> Annual Performance Report 2025 | E1: =+'Cover Page'!$B$33 -> Tyseley Energy from Waste Plant
A3: Summary of Plant Improvements
A5: Summary of any efficiency improvements that have been completed within the year.
A6: n/a
A16: Summary of any permit improvement conditions that have been completed within the year and the resulting environmental benefits.
A17: n/a
A27: Summary of any changes to the plant or operating techniques which required a variation to the permit and a summary of the resulting environmental impact.
A28: n/a
A38: Summary of any other improvements made to the plant or planned to be made and a summary of the resulting environmental benefits.
A39: n/a

Sheet Public Liasion
A1: =+'Cover Page'!$B$29 -> Annual Performance Report 2025 | E1: =+'Cover Page'!$B$33 -> Tyseley Energy from Waste Plant
A3: Details of Public & Stakeholder Liaison
A5: Summary of events held during the reporting year.
A6: Date | C6: Description
A7: Bi-monthly | C7: Meetings with Birmingham City Council
A16: List of events planned for next year
A17: Date | C17: Description
A18: Bi-monthly | C18: Meetings with Birmingham City Council
A29: If you wish to be involved in the public liaison programme, please contact https://www.birmingham.veolia.co.uk/contact#no-back

Sheet CO2 N2O
A1: =+'Cover Page'!$B$29 -> Annual Performance Report 2025 | C1: =+'Cover Page'!$B$33 -> Tyseley Energy from Waste Plant
A3: Carbon dioxide emissions and biogenic content of waste inputs | F3: Notes:
A5: Carbon dioxide emissions (all types of plant)
B6: Annual mass of carbon dioxide released | C6: tonnes | D6: 374652.44
B7: Annual mass of carbon dioxide released per tonne of waste burned | C7: t CO2 / t waste | D7: =IF(D6="","", D6/'Operational Data'!G24) -> 1.041155282 | F7: Note 1: All permits require operators to continuously monitor CO2 to EN14181 and flow to BS EN 16911-2 (unless otherwise agreed in writing). Operators must therefore use the results from these instruments to calculate their annual CO2 emissions. Where an operator does not have a flow meter calibrated to BS EN 16911-2, the averaged flow measurement from that year's periodic monitoring can be used instead. If the plant does not have calibrated CO2 CEMS, a suitably justified emissions factor can be used.
B8: Annual mass of carbon dioxide released per MWh of energy exported | C8: t CO2 / MWh export | D8: =IF(D6="","", D6/'Operational Data'!G28) -> 2.697514832
B9: Description of how annual carbon dioxide mass emission has been calculated. See Note 1 | C9: CEM Data
A10: Nitrous oxide emissions (only plants which use ammonia or urea to abate NOx emissions)
B11: Annual mass emissions of nitrous oxide | C11: tonnes N2O | D11: 1.32
B12: Description of how annual nitrous oxide mass emission has been calculated See Note 2 | C12: CEM Data | F12: Note 2: All permits require operators to continuously monitor N2O to EN14181 and flow to BS EN 16911-2, unless otherwise agreed in writing. Operators must therefore use the results from these instruments to calculate their annual N2O emissions. Where an operator does not have a flow meter calibrated to BS EN 16911-2, the averaged flow measurement from periodic monitoring can be used instead. If the plant does not have calibrated N2O CEMS, data from periodic monitoring or a suitably justified emissions factor can be used instead.
A13: Total annual carbon dioxide + nitrous oxide emissions. See Note 3. | C13: tonnes CO2e | D13: =IF(D11="","",(D11*265)+D6) -> 375002.24 | F13: Note 3: Total annual carbon dioxide and nitrous oxide emissions reported as carbon dioxide equivalent where 1 tonne nitrous oxide is equivalent to 265 tonnes carbon dioxide.
A14: Biogenic CO2 emissions (See Note 4) | F14: Note 4: Only plants combusting residual municipal waste, refuse derived fuel or solid recovered fuel need complete this section.
B15: Percentage of total carbon dioxide emissions arising from biogenic waste | C15: %
B16: No. of measurements undertaken | C16: Number
B17: Description of how percentage biogenic carbon dioxide emissions have been measured or calculated. See Note 5 | F17: Note 5: The results from C14 sampling should be used if this is carried out at the plant (either via an installed sampler or from spot samples). Otherwise, as an approximation (and in lieu of any more accurate metrics which may be developed in future), the measured or estimated biogenic fraction by net calorific value (see Note 6) can be assumed to be the same as the biogenic CO2 fraction of the total CO2 emissions from the plant.
A18: Biogenic fraction of waste feedstock (See Note 4)
B19: Yearly average biogenic percentage of the waste by net calorific value (NCV) | C19: %
B20: Description of how biogenic percentage (by NCV) has been calculated or estimated. See Note 6 | F20: Note 6: If C14 sampling is carried out at the plant, the methodology set out in the embedded document entitled "Renewable Energy Association Energy Content of Fuels - Description of Method" embedded below can be used to calculate the biogenic percentage by net calorific value. Otherwise, data from waste sampling or BIOMA software can be used; or if none of these are available, an estimated figure with justification or a figure assumed on the basis of up-to-date industry data can be used.
B21: Yearly average biogenic percentage of the waste by mass | C21: 0.518 | D21: ='Operational Data'!G24*0.518 -> 186398.674
B22: If waste sampling undertaken, no. of samples used to ascertain average biogenic percentages above | C22: Number
B23: Description of how biogenic percentage (by mass) has been calculated or estimated. See Note 7 | C23: 2017 WRAP data | F23: Note 7: Where available, data from waste sampling should be used; otherwise, an estimated figure with justification can be used, or a figure assumed on the basis of up-to-date industry data.
B25: Comments:

Sheet Residues
A1: =+'Cover Page'!$B$29 -> Annual Performance Report 2025 | E1: =+'Cover Page'!$B$33 -> Tyseley Energy from Waste Plant
A3: Summary of Residue Handling for the reporting year
A5: Ash residues (known as Incinerator Bottom Ash or IBA) were sent to Castle Bromwich for approximatelly the first half of the year and during the second half of the year, they are sent to Derbyshire for reprocessing. This material is reprocessed by extracting further ferrous and non-ferrous metals and by crushing, trommelling and screening to produce a graded, quality material that is useable as substitute aggregate in such applications as road building. Ferrous metal removed from the IBA is sent to a steel manufacturer for recycling. Finer particulate matter, know as Air Pollution Control (APC) residues, removed from the flue gases by fabric filter is collected and sent to the Minosus Hazardous Waste underground storage facility in Cheshire or to Empire Works, a Veolia facility, for treatment. | K5: Include in here a summary of residue handling regimes and destinations
A28: Residue Quality Monitoring Requirements
A30: Summary of monitoring undertaken and compliance
A31: As per permit requirements
A38: Commentary on any specific events
A39: Date & Event | C39: Description
A52: Residue Quality Monitoring Results
A53: Parameter (unit) | C53: Limit* | D53: Normal Operation
D54: Bottom ash | F54: APC Residues
A55: Loss on Ignition (average %) | C55: <5%
A56: Total Organic Carbon (average %) | C56: <3% | D56: 0.875
A57: No. of Assessments Undertaken | C57: ---
A58: No. of Hazardous Results | C58: ---
A59: * The permit will specify a limit of either 5% loss on ignition or 3% total organic carbon. If both are measured anyway, please enter the results here, even where the limit does not apply.
A61: Comments :

Sheet Water
A1: =+'Cover Page'!$B$29 -> Annual Performance Report 2025 | E1: =+'Cover Page'!$B$33 -> Tyseley Energy from Waste Plant
A3: Emissions to Water
A5: Summary of monitoring undertaken and compliance
A6: As per Severn Trent discharge consent of trade effluent to public foul sewer
A8: No water samples were taken during the year
A13: Commentary on any specific events
A14: Date & Event | C14: Description
A22: Emissions to Water / Sewer
A23: Parameter | D23: Monitoring Frequency | F23: Limit | G23: Target | H23: Max. | I23: Average

Sheet Air (periodic)
A1: =+'Cover Page'!$B$29 -> Annual Performance Report 2025 | E1: =+'Cover Page'!$B$33 -> Tyseley Energy from Waste Plant
A3: Emissions to Air (periodically monitored)
A5: Summary of monitoring undertaken, standards used and compliance | L5: Notes:
L6: Template may require adjustment for any bespoke monitoring requirements of permit - please also check that all default ELV values, reference periods and the stated oxygen reference value match those for your plant, and edit if necessary!
A9: Results of emissions to air that are periodically monitored - oxygen reference 11%
A10: Substance | C10: Ref. Period | D10: Emission Limit Value | J10: Average | L10: User to add additional tables as necessary, depending on whether quarterly or bi-annual reporting is required for the compliance year
F11: A1 (Q1&Q2) | G11: A2 (Q1&Q2) | H11: A1 (Q3&Q4) | I11: A2 (Q3&Q4) | J11: A1 | K11: A2
A12: Hydrogen fluoride | C12: 1 hr | D12: 1 mg/m3 | F12: 0.0767 | G12: 0.0767 | H12: 0.0467 | I12: 0.06 | J12: =IF(F12="","",AVERAGE(F12,H12)) -> 0.0617 | K12: =IF(G12="","",AVERAGE(G12,I12)) -> 0.06835
A13: Cd and Tl and their compounds | C13: 0.5-8hrs | D13: 0.02 mg/m3 | F13: 0.0015 | G13: 0.0014 | H13: 0.0022 | I13: 0.0016 | J13: =IF(F13="","",AVERAGE(F13,H13)) -> 0.00185 | K13: =IF(G13="","",AVERAGE(G13,I13)) -> 0.0015
A14: Hg and its compounds | C14: 0.5-8hrs | D14: 0.02 mg/m3 | F14: 0.00038 | G14: 0.00032 | H14: 0.00058 | I14: 0.00055 | J14: 0.00048 | K14: 0.000435
A15: Sb, As, Pb, Cr, Co, Cu, Mn, Ni, V and their compounds | C15: 0.5-8hrs | D15: 0.3 mg/m3 | F15: 0.048 | G15: 0.0547 | H15: 0.1467 | I15: 0.0447 | J15: 0.09735 | K15: 0.0497
A16: Dioxins & Furans (I-TEQ) | C16: 6-8hrs | D16: 0.06 ng/m3 | F16: 0.0083 | G16: 0.01 | H16: 0.017 | I16: 0.011 | J16: 0.01265 | K16: 0.0105
A17: PCBs (WHO-TEQ Humans / Mammals) | C17: 6-8hrs | D17: None set ng/m3 | F17: 0.00058 | G17: 0.00085 | H17: 0.0021 | I17: 0.00072 | J17: 0.00134 | K17: 0.000785
A18: PCBs (WHO-TEQ Fish) | C18: 6-8hrs | D18: None set ng/m3 | F18: 3e-05 | G18: 4.4e-05 | H18: 0.00011 | I18: 5.4e-05 | J18: 7e-05 | K18: 4.9e-05
A19: PCBs (WHO-TEQ Birds) | C19: 6-8hrs | D19: None set ng/m3 | F19: 0.0014 | G19: 0.0018 | H19: 0.011 | I19: 0.012 | J19: 0.0062 | K19: 0.0069
A20: Dioxins & Furans (WHO-TEQ Humans / Mammals) | C20: 6-8hrs | D20: None set ng/m3 | F20: 0.0093 | G20: 0.011 | H20: 0.018 | I20: 0.012 | J20: 0.01365 | K20: 0.0115
A21: Dioxins & Furans (WHO-TEQ Fish) | C21: 6-8hrs | D21: None set ng/m3 | F21: 0.0078 | G21: 0.01 | H21: 0.017 | I21: 0.011 | J21: 0.0124 | K21: 0.0105
A22: Dioxins & Furans (WHO-TEQ Birds) | C22: 6-8hrs | D22: None set ng/m3 | F22: 0.011 | G22: 0.017 | H22: 0.022 | I22: 0.012 | J22: 0.0165 | K22: 0.0145
A23: Brominated Dioxins & Furans (I-TEQ) | C23: 6-8hrs | D23: None set ng/m3 | F23: 0.00084 | G23: 0.00192 | H23: 0.00093 | I23: 0.00108 | J23: =AVERAGE(H23,F23) -> 0.000885 | K23: 0.0015
A24: Total PAH | C24: 6-8hrs | D24: None set µg/m2 | F24: 0.36 | G24: 0.21 | J24: =AVERAGE(F24,H24) -> 0.36 | K24: 0.21
A25: Anthanthrene | C25: 6-8hrs | D25: None set µg/m3 | F25: 0.0018 | G25: 0.0019 | J25: 0.0018 | K25: 0.0019
A26: Benzo(a)anthracene | C26: 6-8hrs | D26: None set µg/m3 | F26: 0.0018 | G26: 0.0019 | J26: 0.0018 | K26: 0.0019
A27: Benzo(a)pyrene | C27: 6-8hrs | D27: None set µg/m3 | F27: 0.0018 | G27: 0.0019 | J27: 0.0018 | K27: 0.0019
A28: Benzo(b)fluoranthene | C28: 6-8hrs | D28: None set µg/m3 | F28: 0.0018 | G28: 0.0019 | J28: 0.0018 | K28: 0.0019
A29: Benzo(b)naptho(2,1-d) thiophene | C29: 6-8hrs | D29: None set µg/m3 | F29: 0.0018 | G29: 0.0019 | J29: 0.0018 | K29: 0.0019
A30: Benzo(c)phenanthrene | C30: 6-8hrs | D30: None set µg/m3 | F30: 0.0018 | G30: 0.0019 | J30: 0.0018 | K30: 0.0019
A31: Benzo(ghi)perylene | C31: 6-8hrs | D31: None set µg/m3 | F31: 0.0018 | G31: 0.0019 | J31: 0.0018 | K31: 0.0019
A32: Benzo(k)fluoranthene | C32: 6-8hrs | D32: None set µg/m3 | F32: 0.0018 | G32: 0.0019 | J32: 0.0018 | K32: 0.0019
A33: Cholanthrene | C33: 6-8hrs | D33: None set µg/m3 | F33: 0.0018 | G33: 0.0019 | J33: 0.0018 | K33: 0.0019
A34: Chrysene | C34: 6-8hrs | D34: None set µg/m3 | F34: 0.0027 | G34: 0.003 | J34: 0.0027 | K34: 0.003
A35: Cyclopenta(cd)pyrene | C35: 6-8hrs | D35: None set µg/m3 | F35: 0.0018 | G35: 0.0019 | J35: 0.0018 | K35: 0.0019
A36: Dibenzo(ai)pyrene | C36: 6-8hrs | D36: None set µg/m3 | F36: 0.0018 | G36: 0.0019 | J36: 0.0018 | K36: 0.0019
A37: Dibenzo(ah)anthracene | C37: 6-8hrs | D37: None set µg/m3 | F37: 0.0018 | G37: 0.0019 | J37: 0.0018 | K37: 0.0019
A38: Fluoranthene | C38: 6-8hrs | D38: None set µg/m3 | F38: 0.054 | G38: 0.06 | J38: 0.054 | K38: 0.06
A39: Indeno(123-cd) pyrene | C39: 6-8hrs | D39: None set µg/m3 | F39: 0.0018 | G39: 0.0019 | J39: 0.0018 | K39: 0.0019
A40: Naphthalene | C40: 6-8hrs | D40: None set µg/m3 | F40: 0.28 | G40: 0.13 | J40: 0.28 | K40: 0.13
A41: Comments :
A42: The PAH periodic emissions monitoring is an annual requirement and was completed during Q1/Q2 periodic emissions monitoring campaign.

Sheet Air (CEMS)
A1: =+'Cover Page'!$B$29 -> Annual Performance Report 2025 | I1: =+'Cover Page'!$B$33 -> Tyseley Energy from Waste Plant
A3: Emissions to Air (continuously monitored)
N4: Notes:
A5: Summary of monitoring undertaken, standards used and compliance | N5: Template may require adjustment for any bespoke monitoring requirements of permit
A6: BS EN 14181 & MCertS CEM system | N6: Please check that all default ELV values match those for your plant and edit if necessary!
N7: Report to 1 decimal place
A11: Results of emissions to air that are continuously monitored (maximum and average values for each line) - oxygen reference 11%
A12: Substance | B12: Reference Period | C12: Emission Limit Value | D12: A1 | F12: A2 | H12: A3 | J12: A4 | L12: A5
D13: Max. | E13: Avg. | F13: Max. | G13: Avg. | H13: Max. | I13: Avg. | J13: Max. | K13: Avg. | L13: Max. | M13: Avg.
A14: Oxides of nitrogen | B14: Daily mean | C14: 180 mg/m3 | D14: =NOx!O19 -> 174.2 | E14: =NOx!N19 -> 159.95 | F14: =NOx!O34 -> 175.4 | G14: =NOx!N34 -> 162.2583333
B15: ½ hourly mean | C15: 400 mg/m3 | D15: =NOx!M19 -> 306.3 | E15: =NOx!L19 -> 159.9833333 | F15: =NOx!M34 -> 272.2 | G15: =NOx!L34 -> 162.3
A16: Particulates | B16: Daily mean | C16: 5 mg/m3 | D16: =Particulates!O19 -> 1.1 | E16: =Particulates!N19 -> 0.2583333333 | F16: =Particulates!O34 -> 1.2 | G16: =Particulates!N34 -> 0.55
B17: ½ hourly mean | C17: 30 mg/m3 | D17: =Particulates!M19 -> 7.9 | E17: =Particulates!L19 -> 0.325 | F17: =Particulates!M34 -> 3.3 | G17: =Particulates!L34 -> 0.6166666667
A18: Total Organic Carbon | B18: Daily mean | C18: 10 mg/m3 | D18: =TOC!O19 -> 2.9 | E18: =TOC!N19 -> 0.375 | F18: =TOC!O34 -> 2.6 | G18: =TOC!N34 -> 0.6166666667
B19: ½ hourly mean | C19: 20 mg/m3 | D19: =TOC!M19 -> 18.1 | E19: =TOC!L19 -> 0.4166666667 | F19: =TOC!M34 -> 15.8 | G19: =TOC!L34 -> 0.6666666667
A20: Hydrogen chloride | B20: Daily mean | C20: 8 mg/m3 | D20: =HCl!O19 -> 7.4 | E20: =HCl!N19 -> 4.441666667 | F20: =HCl!O34 -> 6.9 | G20: =HCl!N34 -> 4.416666667
B21: ½ hourly mean | C21: 60 mg/m3 | D21: =HCl!M19 -> 46 | E21: =HCl!L19 -> 4.466666667 | F21: =HCl!M34 -> 51.2 | G21: =HCl!L34 -> 4.483333333
A22: Sulphur dioxide | B22: Daily mean | C22: 40 mg/m3 | D22: ='SO2'!O19 -> 41.7 | E22: ='SO2'!N19 -> 6.791666667 | F22: ='SO2'!O34 -> 24.1 | G22: ='SO2'!N34 -> 5.708333333
B23: ½ hourly mean | C23: 200 mg/m3 | D23: ='SO2'!M19 -> 166.8 | E23: ='SO2'!L19 -> 6.9 | F23: ='SO2'!M34 -> 176.3 | G23: ='SO2'!L34 -> 5.816666667
A24: Carbon monoxide | B24: Daily mean | C24: 50 mg/m3 | D24: ='CO 95% 10 min'!Q22 -> 28.2 | E24: ='CO 95% 10 min'!P22 -> 11.90833333 | F24: ='CO 95% 10 min'!Q37 -> 27.2 | G24: ='CO 95% 10 min'!P37 -> 11.45
B25: 95%ile 10-min avg * | C25: 150 mg/m3 * | D25: ='CO 95% 10 min'!M22 -> 73.725 | E25: ='CO 95% 10 min'!N22 -> 11.99166667 | F25: ='CO 95% 10 min'!M37 -> 84.1 | G25: ='CO 95% 10 min'!N37 -> 11.475
A26: Ammonia | B26: Daily mean | C26: 15 mg/m3 | D26: ='NH3'!O19 -> 14.1 | E26: ='NH3'!N19 -> 1.075 | F26: ='NH3'!O34 -> 7.1 | G26: ='NH3'!N34 -> 0.9083333333
A27: * = delete as appropriate, depending on whether your plant has half-hourly or 10-min CO ELVs
A28: Comments :

Sheet HCl
A1: =+'Cover Page'!$B$29 -> Annual Performance Report 2025 | E1: =+'Cover Page'!$B$33 -> Tyseley Energy from Waste Plant
A3: Monitoring of Hydrogen Chloride emissions | D3: Whole Installation | G3: See Notes in Cell Q3 | J3: =+A3 -> Monitoring of Hydrogen Chloride emissions | N3: Per Combustion Line | Q3: Notes:
Q4: User to add logic to complete Whole installation, Table A5:G18. From the data in Per Combustion Line, Table J6:O79, subject to No. of lines installed
A5: =+'Cover Page'!C39 -> 2025 | B5: 1/2 Hourly Reference Periods | E5: Daily Reference Periods
A6: mg/Nm3 | B6: 1/2 hourly HCl ELV | C6: Monthly mean of half-hourly averages | D6: Highest half- hourly average | E6: Daily HCl ELV | F6: Monthly mean of daily averages | G6: Highest daily average | J6: =+A5 -> 2025 | K6: mg/Nm3 | L6: Monthly mean of half-hourly averages | M6: Highest half- hourly average | N6: Monthly mean of daily averages | O6: Highest daily average
A7: Jan | B7: 60 | C7: =IF(L7="","",AVERAGE(L7,L22)) -> 4.2 | D7: =IF(M7="","",AVERAGE(M7,M22)) -> 22.35 | E7: 8 | F7: =IF(N7="","",AVERAGE(N7,N22)) -> 4.15 | G7: =IF(O7="","",AVERAGE(O7,O22)) -> 5.8 | J7: A1 | K7: Jan | L7: 3.8 | M7: 12.8 | N7: 3.8 | O7: 5.8
A8: Feb | B8: 60 | C8: =IF(L8="","",AVERAGE(L8,L23)) -> 5.15 | D8: =IF(M8="","",AVERAGE(M8,M23)) -> 34.15 | E8: 8 | F8: =IF(N8="","",AVERAGE(N8,N23)) -> 5.1 | G8: =IF(O8="","",AVERAGE(O8,O23)) -> 6.55 | K8: Feb | L8: 5.1 | M8: 39.1 | N8: 5.1 | O8: 6.7
A9: Mar | B9: 60 | C9: 5.45 | D9: 35.05 | E9: 8 | F9: 5.4 | G9: 7.15 | K9: Mar | L9: 5.5 | M9: 44.6 | N9: 5.4 | O9: 7.4 | Q9: Whole Installation table A5:G18:
A10: Apr | B10: 60 | C10: 5 | D10: 26.7 | E10: 8 | F10: 5 | G10: 6.15 | K10: Apr | L10: 4.9 | M10: 30.5 | N10: 5 | O10: 6.2 | Q10: Mean: for 1/2 hourly and daily periods calculate mean of values across all operational combustion lines for the month
A11: May | B11: 60 | C11: 5.45 | D11: 39.15 | E11: 8 | F11: 5.4 | G11: 6.7 | K11: May | L11: 5.5 | M11: 46 | N11: 5.5 | O11: 6.9
A12: Jun | B12: 60 | C12: 5.15 | D12: 33 | E12: 8 | F12: 5.1 | G12: 6.4 | K12: Jun | L12: 4.9 | M12: 26.5 | N12: 4.8 | O12: 6.3
A13: Jul | B13: 60 | C13: 2.25 | D13: 8.45 | E13: 8 | F13: 2 | G13: 2.7 | K13: Jul | L13: 2.8 | M13: 8.5 | N13: 2.7 | O13: 3.7 | Q13: Maximum: for 1/2 hourly and daily periods use the highest value across all operational combustion lines for the month
A14: Aug | B14: 60 | C14: 3.25 | D14: 17 | E14: 8 | F14: 3.2 | G14: 4.45 | K14: Aug | L14: 3.4 | M14: 17.7 | N14: 3.3 | O14: 4.8
A15: Sep | B15: 60 | C15: 4.05 | D15: 22.15 | E15: 8 | F15: 4.05 | G15: 6.15 | K15: Sep | L15: 3.8 | M15: 25.1 | N15: 3.8 | O15: 6.1
A16: Oct | B16: 60 | C16: 4.5 | D16: 43.75 | E16: 8 | F16: 4.45 | G16: 6.2 | K16: Oct | L16: 4.6 | M16: 36.3 | N16: 4.6 | O16: 5.9
A17: Nov | B17: 60 | C17: 4.45 | D17: 17.9 | E17: 8 | F17: 4.5 | G17: 6 | K17: Nov | L17: 4.5 | M17: 19.1 | N17: 4.5 | O17: 5.5
A18: Dec | B18: 60 | C18: 4.8 | D18: 38.15 | E18: 8 | F18: 4.8 | G18: 7 | K18: Dec | L18: 4.8 | M18: 38.3 | N18: 4.8 | O18: 7.4
K19: Annual | L19: =AVERAGE(L7:L18) -> 4.466666667 | M19: =MAX(M7:M18) -> 46 | N19: =AVERAGE(N7:N18) -> 4.441666667 | O19: =MAX(O7:O18) -> 7.4
J21: =+A5 -> 2025 | K21: mg/Nm3 | L21: Monthly mean of half-hourly averages | M21: Highest half- hourly average | N21: Monthly mean of daily averages | O21: Highest daily average
J22: A2 | K22: Jan | L22: 4.6 | M22: 31.9 | N22: 4.5 | O22: 5.8
K23: Feb | L23: 5.2 | M23: 29.2 | N23: 5.1 | O23: 6.4
K24: Mar | L24: 5.4 | M24: 25.5 | N24: 5.4 | O24: 6.9
K25: Apr | L25: 5.1 | M25: 22.9 | N25: 5 | O25: 6.1
K26: May | L26: 5.4 | M26: 32.3 | N26: 5.3 | O26: 6.5
K27: Jun | L27: 5.4 | M27: 39.5 | N27: 5.4 | O27: 6.5
K28: Jul | L28: 1.7 | M28: 8.4 | N28: 1.3 | O28: 1.7
K29: Aug | L29: 3.1 | M29: 16.3 | N29: 3.1 | O29: 4.1
K30: Sep | L30: 4.3 | M30: 19.2 | N30: 4.3 | O30: 6.2
K31: Oct | L31: 4.4 | M31: 51.2 | N31: 4.3 | O31: 6.5
K32: Nov | L32: 4.4 | M32: 16.7 | N32: 4.5 | O32: 6.5
K33: Dec | L33: 4.8 | M33: 38 | N33: 4.8 | O33: 6.6
K34: Annual | L34: =AVERAGE(L22:L33) -> 4.483333333 | M34: =MAX(M22:M33) -> 51.2 | N34: =AVERAGE(N22:N33) -> 4.416666667 | O34: =MAX(O22:O33) -> 6.9
J36: =+A5 -> 2025 | K36: mg/Nm3 | L36: Monthly mean of half-hourly averages | M36: Highest half- hourly average | N36: Monthly mean of daily averages | O36: Highest daily average
J37: A3 | K37: Jan
K38: Feb
K39: Mar
K40: Apr
K41: May
K42: Jun
K43: Jul
K44: Aug
K45: Sep
K46: Oct
K47: Nov
A48: Comments : | K48: Dec
K49: Annual | L49: =AVERAGE(L37:L48) ->  | M49: =MAX(M37:M48) -> 0 | N49: =AVERAGE(N37:N48) ->  | O49: =MAX(O37:O48) -> 0
J51: =+A5 -> 2025 | K51: mg/Nm3 | L51: Monthly mean of half-hourly averages | M51: Highest half- hourly average | N51: Monthly mean of daily averages | O51: Highest daily average
J52: A4 | K52: Jan
K53: Feb
K54: Mar
K55: Apr
K56: May
K57: Jun
K58: Jul
K59: Aug
K60: Sep
K61: Oct
K62: Nov
K63: Dec
K64: Annual | L64: =AVERAGE(L52:L63) ->  | M64: =MAX(M52:M63) -> 0 | N64: =AVERAGE(N52:N63) ->  | O64: =MAX(O52:O63) -> 0
J66: =+A5 -> 2025 | K66: mg/Nm3 | L66: Monthly mean of half-hourly averages | M66: Highest half- hourly average | N66: Monthly mean of daily averages | O66: Highest daily average
J67: A5 | K67: Jan
K68: Feb
K69: Mar
K70: Apr
K71: May
K72: Jun
K73: Jul
K74: Aug
K75: Sep
K76: Oct
K77: Nov
K78: Dec
K79: Annual | L79: =AVERAGE(L67:L78) ->  | M79: =MAX(M67:M78) -> 0 | N79: =AVERAGE(N67:N78) ->  | O79: =MAX(O67:O78) -> 0

Sheet SO2
A1: =+'Cover Page'!$B$29 -> Annual Performance Report 2025 | E1: =+'Cover Page'!$B$33 -> Tyseley Energy from Waste Plant
A3: Monitoring of Sulphur dioxide emissions | D3: Whole Installation | G3: See Notes in Cell Q3 | J3: =+A3 -> Monitoring of Sulphur dioxide emissions | N3: Per Combustion Line | Q3: Notes:
Q4: User to add logic to complete Whole installation, Table A5:G18. From the data in Per Combustion Line, Table J6:O79, subject to No. of lines installed
A5: =+'Cover Page'!C39 -> 2025 | B5: 1/2 Hourly Reference Periods | E5: Daily Reference Periods
A6: mg/Nm3 | B6: 1/2 hourly SO2 ELV | C6: Monthly mean of half-hourly averages | D6: Highest half- hourly average | E6: Daily SO2 ELV | F6: Monthly mean of daily averages | G6: Highest daily average | J6: =+A5 -> 2025 | K6: mg/Nm3 | L6: Monthly mean of half-hourly averages | M6: Highest half- hourly average | N6: Monthly mean of daily averages | O6: Highest daily average
A7: Jan | B7: 200 | C7: =IF(L7="","",AVERAGE(L7,L22)) -> 5.1 | D7: =IF(M7="","",AVERAGE(M7,M22)) -> 88.85 | E7: 40 | F7: =IF(N7="","",AVERAGE(N7,N22)) -> 5.05 | G7: =IF(O7="","",AVERAGE(O7,O22)) -> 13.6 | J7: A1 | K7: Jan | L7: 6.2 | M7: 113.9 | N7: 6.2 | O7: 16.6
A8: Feb | B8: 200 | C8: =IF(L8="","",AVERAGE(L8,L23)) -> 6.6 | D8: =IF(M8="","",AVERAGE(M8,M23)) -> 119.6 | E8: 40 | F8: =IF(N8="","",AVERAGE(N8,N23)) -> 6.55 | G8: =IF(O8="","",AVERAGE(O8,O23)) -> 12.8 | K8: Feb | L8: 7.7 | M8: 109.7 | N8: 7.6 | O8: 14.7
A9: Mar | B9: 200 | C9: 6.15 | D9: 109.75 | E9: 40 | F9: 6.15 | G9: 12.7 | K9: Mar | L9: 7.4 | M9: 112.6 | N9: 7.4 | O9: 17 | Q9: Whole Installation table A5:G18:
A10: Apr | B10: 200 | C10: 4.15 | D10: 71.2 | E10: 40 | F10: 4.15 | G10: 7.4 | K10: Apr | L10: 4.4 | M10: 88.9 | N10: 4.5 | O10: 7.2 | Q10: Mean: for 1/2 hourly and daily periods calculate mean of values across all operational combustion lines for the month
A11: May | B11: 200 | C11: 6.15 | D11: 113.35 | E11: 40 | F11: 6.15 | G11: 13.4 | K11: May | L11: 6.6 | M11: 118.4 | N11: 6.6 | O11: 15.3
A12: Jun | B12: 200 | C12: 4.35 | D12: 169.3 | E12: 40 | F12: 4.35 | G12: 10.4 | K12: Jun | L12: 5 | M12: 162.3 | N12: 5 | O12: 11.3
A13: Jul | B13: 200 | C13: 16.1 | D13: 124.25 | E13: 40 | F13: 15.1 | G13: 28.75 | K13: Jul | L13: 20.1 | M13: 150.2 | N13: 19.1 | O13: 41.7 | Q13: Maximum: for 1/2 hourly and daily periods use the highest value across all operational combustion lines for the month
A14: Aug | B14: 200 | C14: 9.1 | D14: 113.7 | E14: 40 | F14: 9 | G14: 21.65 | K14: Aug | L14: 7.1 | M14: 98.2 | N14: 7 | O14: 19.2
A15: Sep | B15: 200 | C15: 4.25 | D15: 93.4 | E15: 40 | F15: 4.2 | G15: 10.75 | K15: Sep | L15: 4.4 | M15: 110.5 | N15: 4.2 | O15: 12.3
A16: Oct | B16: 200 | C16: 4.2 | D16: 88.9 | E16: 40 | F16: 4.15 | G16: 11.95 | K16: Oct | L16: 4.4 | M16: 88.4 | N16: 4.4 | O16: 13.3
A17: Nov | B17: 200 | C17: 5.3 | D17: 127.55 | E17: 40 | F17: 5.35 | G17: 12.35 | K17: Nov | L17: 5 | M17: 166.8 | N17: 5.1 | O17: 13.5
A18: Dec | B18: 200 | C18: 4.85 | D18: 124.35 | E18: 40 | F18: 4.8 | G18: 11.4 | K18: Dec | L18: 4.5 | M18: 115.2 | N18: 4.4 | O18: 10.5
K19: Annual | L19: =AVERAGE(L7:L18) -> 6.9 | M19: =MAX(M7:M18) -> 166.8 | N19: =AVERAGE(N7:N18) -> 6.791666667 | O19: =MAX(O7:O18) -> 41.7
J21: =+A5 -> 2025 | K21: mg/Nm3 | L21: Monthly mean of half-hourly averages | M21: Highest half- hourly average | N21: Monthly mean of daily averages | O21: Highest daily average
J22: A2 | K22: Jan | L22: 4 | M22: 63.8 | N22: 3.9 | O22: 10.6
K23: Feb | L23: 5.5 | M23: 129.5 | N23: 5.5 | O23: 10.9
K24: Mar | L24: 4.9 | M24: 106.9 | N24: 4.9 | O24: 8.4
K25: Apr | L25: 3.9 | M25: 53.5 | N25: 3.8 | O25: 7.6
K26: May | L26: 5.7 | M26: 108.3 | N26: 5.7 | O26: 11.5
K27: Jun | L27: 3.7 | M27: 176.3 | N27: 3.7 | O27: 9.5
K28: Jul | L28: 12.1 | M28: 98.3 | N28: 11.1 | O28: 15.8
K29: Aug | L29: 11.1 | M29: 129.2 | N29: 11 | O29: 24.1
K30: Sep | L30: 4.1 | M30: 76.3 | N30: 4.2 | O30: 9.2
K31: Oct | L31: 4 | M31: 89.4 | N31: 3.9 | O31: 10.6
K32: Nov | L32: 5.6 | M32: 88.3 | N32: 5.6 | O32: 11.2
K33: Dec | L33: 5.2 | M33: 133.5 | N33: 5.2 | O33: 12.3
K34: Annual | L34: =AVERAGE(L22:L33) -> 5.816666667 | M34: =MAX(M22:M33) -> 176.3 | N34: =AVERAGE(N22:N33) -> 5.708333333 | O34: =MAX(O22:O33) -> 24.1
J36: =+A5 -> 2025 | K36: mg/Nm3 | L36: Monthly mean of half-hourly averages | M36: Highest half- hourly average | N36: Monthly mean of daily averages | O36: Highest daily average
J37: A3 | K37: Jan
K38: Feb
K39: Mar
K40: Apr
K41: May
K42: Jun
K43: Jul
K44: Aug
K45: Sep
K46: Oct
K47: Nov
A48: Comments : | K48: Dec
K49: Annual | L49: =AVERAGE(L37:L48) ->  | M49: =MAX(M37:M48) -> 0 | N49: =AVERAGE(N37:N48) ->  | O49: =MAX(O37:O48) -> 0
J51: =+A5 -> 2025 | K51: mg/Nm3 | L51: Monthly mean of half-hourly averages | M51: Highest half- hourly average | N51: Monthly mean of daily averages | O51: Highest daily average
J52: A4 | K52: Jan
K53: Feb
K54: Mar
K55: Apr
K56: May
K57: Jun
K58: Jul
K59: Aug
K60: Sep
K61: Oct
K62: Nov
K63: Dec
K64: Annual | L64: =AVERAGE(L52:L63) ->  | M64: =MAX(M52:M63) -> 0 | N64: =AVERAGE(N52:N63) ->  | O64: =MAX(O52:O63) -> 0
J66: =+A5 -> 2025 | K66: mg/Nm3 | L66: Monthly mean of half-hourly averages | M66: Highest half- hourly average | N66: Monthly mean of daily averages | O66: Highest daily average
J67: A5 | K67: Jan
K68: Feb
K69: Mar
K70: Apr
K71: May
K72: Jun
K73: Jul
K74: Aug
K75: Sep
K76: Oct
K77: Nov
K78: Dec
K79: Annual | L79: =AVERAGE(L67:L78) ->  | M79: =MAX(M67:M78) -> 0 | N79: =AVERAGE(N67:N78) ->  | O79: =MAX(O67:O78) -> 0

Sheet NOx
A1: =+'Cover Page'!$B$29 -> Annual Performance Report 2025 | E1: =+'Cover Page'!$B$33 -> Tyseley Energy from Waste Plant
A3: Monitoring of Oxides of Nitrogen emissions | D3: Whole Installation | G3: See Notes in Cell Q3 | J3: =+A3 -> Monitoring of Oxides of Nitrogen emissions | N3: Per Combustion Line | Q3: Notes:
Q4: User to add logic to complete Whole installation, Table A5:G18. From the data in Per Combustion Line, Table J6:O79, subject to No. of lines installed
A5: =+'Cover Page'!C39 -> 2025 | B5: 1/2 Hourly Reference Periods | E5: Daily Reference Periods
A6: mg/Nm3 | B6: 1/2 hourly NOx ELV | C6: Monthly mean of half-hourly averages | D6: Highest half- hourly average | E6: Daily NOx ELV | F6: Monthly mean of daily averages | G6: Highest daily average | J6: =+A5 -> 2025 | K6: mg/Nm3 | L6: Monthly mean of half-hourly averages | M6: Highest half- hourly average | N6: Monthly mean of daily averages | O6: Highest daily average
A7: Jan | B7: 400 | C7: =IF(L7="","",AVERAGE(L7,L22)) -> 163.85 | D7: =IF(M7="","",AVERAGE(M7,M22)) -> 210.45 | E7: 180 | F7: =IF(N7="","",AVERAGE(N7,N22)) -> 163.75 | G7: =IF(O7="","",AVERAGE(O7,O22)) -> 165.15 | J7: A1 | K7: Jan | L7: 163.7 | M7: 218.9 | N7: 163.6 | O7: 164.9
A8: Feb | B8: 400 | C8: =IF(L8="","",AVERAGE(L8,L23)) -> 163.35 | D8: =IF(M8="","",AVERAGE(M8,M23)) -> 194.95 | E8: 180 | F8: =IF(N8="","",AVERAGE(N8,N23)) -> 163.3 | G8: =IF(O8="","",AVERAGE(O8,O23)) -> 165.55 | K8: Feb | L8: 163.6 | M8: 196.5 | N8: 163.6 | O8: 165.4
A9: Mar | B9: 400 | C9: 162.95 | D9: 195.5 | E9: 180 | F9: 162.95 | G9: 165.05 | K9: Mar | L9: 163.2 | M9: 195.8 | N9: 163.2 | O9: 164.7 | Q9: Whole Installation table A5:G18:
A10: Apr | B10: 400 | C10: 155.7 | D10: 197.05 | E10: 180 | F10: 155.7 | G10: 158.4 | K10: Apr | L10: 153 | M10: 203.1 | N10: 153 | O10: 154.5 | Q10: Mean: for 1/2 hourly and daily periods calculate mean of values across all operational combustion lines for the month
A11: May | B11: 400 | C11: 152.7 | D11: 233.9 | E11: 180 | F11: 152.65 | G11: 159.95 | K11: May | L11: 148.8 | M11: 257.2 | N11: 148.7 | O11: 156.7
A12: Jun | B12: 400 | C12: 157.15 | D12: 202.25 | E12: 180 | F12: 156.95 | G12: 165.65 | K12: Jun | L12: 154.8 | M12: 191.3 | N12: 154.7 | O12: 164.6
A13: Jul | B13: 400 | C13: 162.6 | D13: 252.55 | E13: 180 | F13: 162.7 | G13: 170.6 | K13: Jul | L13: 160 | M13: 306.3 | N13: 160 | O13: 172.1 | Q13: Maximum: for 1/2 hourly and daily periods use the highest value across all operational combustion lines for the month
A14: Aug | B14: 400 | C14: 163.25 | D14: 241.05 | E14: 180 | F14: 163.2 | G14: 169.4 | K14: Aug | L14: 162.3 | M14: 239.1 | N14: 162.2 | O14: 170.9
A15: Sep | B15: 400 | C15: 162.45 | D15: 215.2 | E15: 180 | F15: 162.35 | G15: 168.5 | K15: Sep | L15: 161 | M15: 210.9 | N15: 160.9 | O15: 164.8
A16: Oct | B16: 400 | C16: 161.85 | D16: 246.5 | E16: 180 | F16: 161.8 | G16: 167.5 | K16: Oct | L16: 161.9 | M16: 220.8 | N16: 161.8 | O16: 166.6
A17: Nov | B17: 400 | C17: 163.4 | D17: 199.6 | E17: 180 | F17: 163.45 | G17: 166.4 | K17: Nov | L17: 164 | M17: 202.5 | N17: 164.2 | O17: 165.6
A18: Dec | B18: 400 | C18: 164.45 | D18: 229.95 | E18: 180 | F18: 164.45 | G18: 174.8 | K18: Dec | L18: 163.5 | M18: 225 | N18: 163.5 | O18: 174.2
K19: Annual | L19: =AVERAGE(L7:L18) -> 159.9833333 | M19: =MAX(M7:M18) -> 306.3 | N19: =AVERAGE(N7:N18) -> 159.95 | O19: =MAX(O7:O18) -> 174.2
J21: =+A5 -> 2025 | K21: mg/Nm3 | L21: Monthly mean of half-hourly averages | M21: Highest half- hourly average | N21: Monthly mean of daily averages | O21: Highest daily average
J22: A2 | K22: Jan | L22: 164 | M22: 202 | N22: 163.9 | O22: 165.4
K23: Feb | L23: 163.1 | M23: 193.4 | N23: 163 | O23: 165.7
K24: Mar | L24: 162.7 | M24: 195.2 | N24: 162.7 | O24: 165.4
K25: Apr | L25: 158.4 | M25: 191 | N25: 158.4 | O25: 162.3
K26: May | L26: 156.6 | M26: 210.6 | N26: 156.6 | O26: 163.2
K27: Jun | L27: 159.5 | M27: 213.2 | N27: 159.2 | O27: 166.7
K28: Jul | L28: 165.2 | M28: 198.8 | N28: 165.4 | O28: 169.1
K29: Aug | L29: 164.2 | M29: 243 | N29: 164.2 | O29: 167.9
K30: Sep | L30: 163.9 | M30: 219.5 | N30: 163.8 | O30: 172.2
K31: Oct | L31: 161.8 | M31: 272.2 | N31: 161.8 | O31: 168.4
K32: Nov | L32: 162.8 | M32: 196.7 | N32: 162.7 | O32: 167.2
K33: Dec | L33: 165.4 | M33: 234.9 | N33: 165.4 | O33: 175.4
K34: Annual | L34: =AVERAGE(L22:L33) -> 162.3 | M34: =MAX(M22:M33) -> 272.2 | N34: =AVERAGE(N22:N33) -> 162.2583333 | O34: =MAX(O22:O33) -> 175.4
J36: =+A5 -> 2025 | K36: mg/Nm3 | L36: Monthly mean of half-hourly averages | M36: Highest half- hourly average | N36: Monthly mean of daily averages | O36: Highest daily average
J37: A3 | K37: Jan
K38: Feb
K39: Mar
K40: Apr
K41: May
K42: Jun
K43: Jul
K44: Aug
K45: Sep
K46: Oct
K47: Nov
A48: Comments : | K48: Dec
K49: Annual | L49: =AVERAGE(L37:L48) ->  | M49: =MAX(M37:M48) -> 0 | N49: =AVERAGE(N37:N48) ->  | O49: =MAX(O37:O48) -> 0
J51: =+A5 -> 2025 | K51: mg/Nm3 | L51: Monthly mean of half-hourly averages | M51: Highest half- hourly average | N51: Monthly mean of daily averages | O51: Highest daily average
J52: A4 | K52: Jan
K53: Feb
K54: Mar
K55: Apr
K56: May
K57: Jun
K58: Jul
K59: Aug
K60: Sep
K61: Oct
K62: Nov
K63: Dec
K64: Annual | L64: =AVERAGE(L52:L63) ->  | M64: =MAX(M52:M63) -> 0 | N64: =AVERAGE(N52:N63) ->  | O64: =MAX(O52:O63) -> 0
J66: =+A5 -> 2025 | K66: mg/Nm3 | L66: Monthly mean of half-hourly averages | M66: Highest half- hourly average | N66: Monthly mean of daily averages | O66: Highest daily average
J67: A5 | K67: Jan
K68: Feb
K69: Mar
K70: Apr
K71: May
K72: Jun
K73: Jul
K74: Aug
K75: Sep
K76: Oct
K77: Nov
K78: Dec
K79: Annual | L79: =AVERAGE(L67:L78) ->  | M79: =MAX(M67:M78) -> 0 | N79: =AVERAGE(N67:N78) ->  | O79: =MAX(O67:O78) -> 0

Sheet TOC
A1: =+'Cover Page'!$B$29 -> Annual Performance Report 2025 | E1: =+'Cover Page'!$B$33 -> Tyseley Energy from Waste Plant
A3: Monitoring of Total organic carbon emissions | D3: Whole Installation | G3: See Notes in Cell Q3 | J3: =+A3 -> Monitoring of Total organic carbon emissions | N3: Per Combustion Line | Q3: Notes:
Q4: User to add logic to complete Whole installation, Table A5:G18. From the data in Per Combustion Line, Table J6:O79, subject to No. of lines installed
A5: =+'Cover Page'!C39 -> 2025 | B5: 1/2 Hourly Reference Periods | E5: Daily Reference Periods
A6: mg/Nm3 | B6: 1/2 hourly TOC ELV | C6: Monthly mean of half-hourly averages | D6: Highest half- hourly average | E6: Daily TOC ELV | F6: Monthly mean of daily averages | G6: Highest daily average | J6: =+A5 -> 2025 | K6: mg/Nm3 | L6: Monthly mean of half-hourly averages | M6: Highest half- hourly average | N6: Monthly mean of daily averages | O6: Highest daily average
A7: Jan | B7: 20 | C7: =IF(L7="","",AVERAGE(L7,L22)) -> 1.25 | D7: =IF(M7="","",AVERAGE(M7,M22)) -> 9.75 | E7: 10 | F7: =IF(N7="","",AVERAGE(N7,N22)) -> 1.15 | G7: =IF(O7="","",AVERAGE(O7,O22)) -> 1.65 | J7: A1 | K7: Jan | L7: 0.6 | M7: 12.8 | N7: 0.5 | O7: 1.1
A8: Feb | B8: 20 | C8: =IF(L8="","",AVERAGE(L8,L23)) -> 1.2 | D8: =IF(M8="","",AVERAGE(M8,M23)) -> 10.2 | E8: 10 | F8: =IF(N8="","",AVERAGE(N8,N23)) -> 1.15 | G8: =IF(O8="","",AVERAGE(O8,O23)) -> 1.45 | K8: Feb | L8: 0.6 | M8: 11.2 | N8: 0.6 | O8: 1
A9: Mar | B9: 20 | C9: 1.25 | D9: 13.5 | E9: 10 | F9: 1.2 | G9: 1.85 | K9: Mar | L9: 0.6 | M9: 16.2 | N9: 0.6 | O9: 1.1 | Q9: Whole Installation table A5:G18:
A10: Apr | B10: 20 | C10: 0.4 | D10: 9.55 | E10: 10 | F10: 0.4 | G10: 0.8 | K10: Apr | L10: 0.5 | M10: 11.9 | N10: 0.5 | O10: 0.7 | Q10: Mean: for 1/2 hourly and daily periods calculate mean of values across all operational combustion lines for the month
A11: May | B11: 20 | C11: 0.3 | D11: 13.35 | E11: 10 | F11: 0.3 | G11: 1.05 | K11: May | L11: 0.4 | M11: 10.9 | N11: 0.4 | O11: 0.8
A12: Jun | B12: 20 | C12: 0.4 | D12: 9.4 | E12: 10 | F12: 0.35 | G12: 1.75 | K12: Jun | L12: 0.6 | M12: 9.9 | N12: 0.6 | O12: 2.9
A13: Jul | B13: 20 | C13: 0.4 | D13: 11.7 | E13: 10 | F13: 0.3 | G13: 0.6 | K13: Jul | L13: 0.4 | M13: 11.2 | N13: 0.4 | O13: 0.7 | Q13: Maximum: for 1/2 hourly and daily periods use the highest value across all operational combustion lines for the month
A14: Aug | B14: 20 | C14: 0.25 | D14: 8.55 | E14: 10 | F14: 0.2 | G14: 0.8 | K14: Aug | L14: 0.3 | M14: 7.4 | N14: 0.2 | O14: 0.9
A15: Sep | B15: 20 | C15: 0.25 | D15: 11.05 | E15: 10 | F15: 0.2 | G15: 0.7 | K15: Sep | L15: 0.2 | M15: 12.1 | N15: 0.1 | O15: 0.6
A16: Oct | B16: 20 | C16: 0.25 | D16: 9.15 | E16: 10 | F16: 0.2 | G16: 0.8 | K16: Oct | L16: 0.3 | M16: 8.1 | N16: 0.2 | O16: 0.8
A17: Nov | B17: 20 | C17: 0.3 | D17: 9.5 | E17: 10 | F17: 0.25 | G17: 1.1 | K17: Nov | L17: 0.3 | M17: 12 | N17: 0.2 | O17: 1.5
A18: Dec | B18: 20 | C18: 0.25 | D18: 15.55 | E18: 10 | F18: 0.25 | G18: 0.65 | K18: Dec | L18: 0.2 | M18: 18.1 | N18: 0.2 | O18: 0.6
K19: Annual | L19: =AVERAGE(L7:L18) -> 0.4166666667 | M19: =MAX(M7:M18) -> 18.1 | N19: =AVERAGE(N7:N18) -> 0.375 | O19: =MAX(O7:O18) -> 2.9
J21: =+A5 -> 2025 | K21: mg/Nm3 | L21: Monthly mean of half-hourly averages | M21: Highest half- hourly average | N21: Monthly mean of daily averages | O21: Highest daily average
J22: A2 | K22: Jan | L22: 1.9 | M22: 6.7 | N22: 1.8 | O22: 2.2
K23: Feb | L23: 1.8 | M23: 9.2 | N23: 1.7 | O23: 1.9
K24: Mar | L24: 1.9 | M24: 10.8 | N24: 1.8 | O24: 2.6
K25: Apr | L25: 0.3 | M25: 7.2 | N25: 0.3 | O25: 0.9
K26: May | L26: 0.2 | M26: 15.8 | N26: 0.2 | O26: 1.3
K27: Jun | L27: 0.2 | M27: 8.9 | N27: 0.1 | O27: 0.6
K28: Jul | L28: 0.4 | M28: 12.2 | N28: 0.2 | O28: 0.5
K29: Aug | L29: 0.2 | M29: 9.7 | N29: 0.2 | O29: 0.7
K30: Sep | L30: 0.3 | M30: 10 | N30: 0.3 | O30: 0.8
K31: Oct | L31: 0.2 | M31: 10.2 | N31: 0.2 | O31: 0.8
K32: Nov | L32: 0.3 | M32: 7 | N32: 0.3 | O32: 0.7
K33: Dec | L33: 0.3 | M33: 13 | N33: 0.3 | O33: 0.7
K34: Annual | L34: =AVERAGE(L22:L33) -> 0.6666666667 | M34: =MAX(M22:M33) -> 15.8 | N34: =AVERAGE(N22:N33) -> 0.6166666667 | O34: =MAX(O22:O33) -> 2.6
J36: =+A5 -> 2025 | K36: mg/Nm3 | L36: Monthly mean of half-hourly averages | M36: Highest half- hourly average | N36: Monthly mean of daily averages | O36: Highest daily average
J37: A3 | K37: Jan
K38: Feb
K39: Mar
K40: Apr
K41: May
K42: Jun
K43: Jul
K44: Aug
K45: Sep
K46: Oct
K47: Nov
A48: Comments : | K48: Dec
K49: Annual | L49: =AVERAGE(L37:L48) ->  | M49: =MAX(M37:M48) -> 0 | N49: =AVERAGE(N37:N48) ->  | O49: =MAX(O37:O48) -> 0
J51: =+A5 -> 2025 | K51: mg/Nm3 | L51: Monthly mean of half-hourly averages | M51: Highest half- hourly average | N51: Monthly mean of daily averages | O51: Highest daily average
J52: A4 | K52: Jan
K53: Feb
K54: Mar
K55: Apr
K56: May
K57: Jun
K58: Jul
K59: Aug
K60: Sep
K61: Oct
K62: Nov
K63: Dec
K64: Annual | L64: =AVERAGE(L52:L63) ->  | M64: =MAX(M52:M63) -> 0 | N64: =AVERAGE(N52:N63) ->  | O64: =MAX(O52:O63) -> 0
J66: =+A5 -> 2025 | K66: mg/Nm3 | L66: Monthly mean of half-hourly averages | M66: Highest half- hourly average | N66: Monthly mean of daily averages | O66: Highest daily average
J67: A5 | K67: Jan
K68: Feb
K69: Mar
K70: Apr
K71: May
K72: Jun
K73: Jul
K74: Aug
K75: Sep
K76: Oct
K77: Nov
K78: Dec
K79: Annual | L79: =AVERAGE(L67:L78) ->  | M79: =MAX(M67:M78) -> 0 | N79: =AVERAGE(N67:N78) ->  | O79: =MAX(O67:O78) -> 0

Sheet Particulates
A1: =+'Cover Page'!$B$29 -> Annual Performance Report 2025 | E1: =+'Cover Page'!$B$33 -> Tyseley Energy from Waste Plant
A3: Monitoring of Particulate matter emissions | D3: Whole Installation | G3: See Notes in Cell Q3 | J3: =+A3 -> Monitoring of Particulate matter emissions | N3: Per Combustion Line | Q3: Notes:
A5: =+'Cover Page'!C39 -> 2025 | B5: 1/2 Hourly Reference Periods | E5: Daily Reference Periods | Q5: User to add logic to complete Whole installation, Table A5:G18. From the data in Per Combustion Line, Table J6:O79, subject to No. of lines installed
A6: mg/Nm3 | B6: 1/2 hourly PM ELV | C6: Monthly mean of half-hourly averages | D6: Highest half- hourly average | E6: Daily PM ELV | F6: Monthly mean of daily averages | G6: Highest daily average | J6: =+A5 -> 2025 | K6: mg/Nm3 | L6: Monthly mean of half-hourly averages | M6: Highest half- hourly average | N6: Monthly mean of daily averages | O6: Highest daily average
A7: Jan | B7: 30 | C7: =IF(L7="","",AVERAGE(L7,L22)) -> 0.75 | D7: =IF(M7="","",AVERAGE(M7,M22)) -> 1.9 | E7: 5 | F7: =IF(N7="","",AVERAGE(N7,N22)) -> 0.65 | G7: =IF(O7="","",AVERAGE(O7,O22)) -> 0.9 | J7: A1 | K7: Jan | L7: 0.4 | M7: 1.8 | N7: 0.3 | O7: 0.6
A8: Feb | B8: 30 | C8: =IF(L8="","",AVERAGE(L8,L23)) -> 0.6 | D8: =IF(M8="","",AVERAGE(M8,M23)) -> 1.4 | E8: 5 | F8: =IF(N8="","",AVERAGE(N8,N23)) -> 0.55 | G8: =IF(O8="","",AVERAGE(O8,O23)) -> 0.65 | K8: Feb | L8: 0.3 | M8: 0.7 | N8: 0.3 | O8: 0.4
A9: Mar | B9: 30 | C9: 0.7 | D9: 1.8 | E9: 5 | F9: 0.6 | G9: 0.95 | K9: Mar | L9: 0.4 | M9: 1.9 | N9: 0.3 | O9: 0.8
A10: Apr | B10: 30 | C10: 0.35 | D10: 3.2 | E10: 5 | F10: 0.3 | G10: 0.5 | K10: Apr | L10: 0.3 | M10: 3.1 | N10: 0.2 | O10: 0.4 | Q10: Whole Installation table A5:G18:
A11: May | B11: 30 | C11: 0.35 | D11: 4.3 | E11: 5 | F11: 0.35 | G11: 0.8 | K11: May | L11: 0.3 | M11: 7.9 | N11: 0.3 | O11: 1.1 | Q11: Mean: for 1/2 hourly and daily periods calculate mean of values across all operational combustion lines for the month
A12: Jun | B12: 30 | C12: 0.4 | D12: 1.2 | E12: 5 | F12: 0.3 | G12: 0.4 | K12: Jun | L12: 0.3 | M12: 0.8 | N12: 0.2 | O12: 0.3
A13: Jul | B13: 30 | C13: 0.35 | D13: 2.45 | E13: 5 | F13: 0.25 | G13: 0.4 | K13: Jul | L13: 0.3 | M13: 2.4 | N13: 0.2 | O13: 0.4
A14: Aug | B14: 30 | C14: 0.4 | D14: 2.8 | E14: 5 | F14: 0.35 | G14: 0.6 | K14: Aug | L14: 0.4 | M14: 4.8 | N14: 0.3 | O14: 0.7 | Q14: Maximum: for 1/2 hourly and daily periods use the highest value across all operational combustion lines for the month
A15: Sep | B15: 30 | C15: 0.4 | D15: 0.65 | E15: 5 | F15: 0.35 | G15: 0.4 | K15: Sep | L15: 0.3 | M15: 0.6 | N15: 0.3 | O15: 0.3
A16: Oct | B16: 30 | C16: 0.35 | D16: 0.7 | E16: 5 | F16: 0.3 | G16: 0.4 | K16: Oct | L16: 0.3 | M16: 0.7 | N16: 0.2 | O16: 0.3
A17: Nov | B17: 30 | C17: 0.5 | D17: 1.1 | E17: 5 | F17: 0.45 | G17: 0.7 | K17: Nov | L17: 0.3 | M17: 0.8 | N17: 0.3 | O17: 0.4
A18: Dec | B18: 30 | C18: 0.5 | D18: 1.4 | E18: 5 | F18: 0.4 | G18: 0.75 | K18: Dec | L18: 0.3 | M18: 0.5 | N18: 0.2 | O18: 0.3
K19: Annual | L19: =AVERAGE(L7:L18) -> 0.325 | M19: =MAX(M7:M18) -> 7.9 | N19: =AVERAGE(N7:N18) -> 0.2583333333 | O19: =MAX(O7:O18) -> 1.1
J21: =+A5 -> 2025 | K21: mg/Nm3 | L21: Monthly mean of half-hourly averages | M21: Highest half- hourly average | N21: Monthly mean of daily averages | O21: Highest daily average
J22: A2 | K22: Jan | L22: 1.1 | M22: 2 | N22: 1 | O22: 1.2
K23: Feb | L23: 0.9 | M23: 2.1 | N23: 0.8 | O23: 0.9
K24: Mar | L24: 1 | M24: 1.7 | N24: 0.9 | O24: 1.1
K25: Apr | L25: 0.4 | M25: 3.3 | N25: 0.4 | O25: 0.6
K26: May | L26: 0.4 | M26: 0.7 | N26: 0.4 | O26: 0.5
K27: Jun | L27: 0.5 | M27: 1.6 | N27: 0.4 | O27: 0.5
K28: Jul | L28: 0.4 | M28: 2.5 | N28: 0.3 | O28: 0.4
K29: Aug | L29: 0.4 | M29: 0.8 | N29: 0.4 | O29: 0.5
K30: Sep | L30: 0.5 | M30: 0.7 | N30: 0.4 | O30: 0.5
K31: Oct | L31: 0.4 | M31: 0.7 | N31: 0.4 | O31: 0.5
K32: Nov | L32: 0.7 | M32: 1.4 | N32: 0.6 | O32: 1
K33: Dec | L33: 0.7 | M33: 2.3 | N33: 0.6 | O33: 1.2
K34: Annual | L34: =AVERAGE(L22:L33) -> 0.6166666667 | M34: =MAX(M22:M33) -> 3.3 | N34: =AVERAGE(N22:N33) -> 0.55 | O34: =MAX(O22:O33) -> 1.2
J36: =+A5 -> 2025 | K36: mg/Nm3 | L36: Monthly mean of half-hourly averages | M36: Highest half- hourly average | N36: Monthly mean of daily averages | O36: Highest daily average
J37: A3 | K37: Jan
K38: Feb
K39: Mar
K40: Apr
K41: May
K42: Jun
K43: Jul
K44: Aug
K45: Sep
K46: Oct
K47: Nov
A48: Comments : | K48: Dec
K49: Annual | L49: =AVERAGE(L37:L48) ->  | M49: =MAX(M37:M48) -> 0 | N49: =AVERAGE(N37:N48) ->  | O49: =MAX(O37:O48) -> 0
J51: =+A5 -> 2025 | K51: mg/Nm3 | L51: Monthly mean of half-hourly averages | M51: Highest half- hourly average | N51: Monthly mean of daily averages | O51: Highest daily average
J52: A4 | K52: Jan
K53: Feb
K54: Mar
K55: Apr
K56: May
K57: Jun
K58: Jul
K59: Aug
K60: Sep
K61: Oct
K62: Nov
K63: Dec
K64: Annual | L64: =AVERAGE(L52:L63) ->  | M64: =MAX(M52:M63) -> 0 | N64: =AVERAGE(N52:N63) ->  | O64: =MAX(O52:O63) -> 0
J66: =+A5 -> 2025 | K66: mg/Nm3 | L66: Monthly mean of half-hourly averages | M66: Highest half- hourly average | N66: Monthly mean of daily averages | O66: Highest daily average
J67: A5 | K67: Jan
K68: Feb
K69: Mar
K70: Apr
K71: May
K72: Jun
K73: Jul
K74: Aug
K75: Sep
K76: Oct
K77: Nov
K78: Dec
K79: Annual | L79: =AVERAGE(L67:L78) ->  | M79: =MAX(M67:M78) -> 0 | N79: =AVERAGE(N67:N78) ->  | O79: =MAX(O67:O78) -> 0

Sheet CO 0.5 hourly (hidden)
A1: =+'Cover Page'!$B$29 -> Annual Performance Report 2025 | E1: =+'Cover Page'!$B$33 -> Tyseley Energy from Waste Plant
A3: Monitoring of Carbon Monoxide (half hourly) | D3: Whole Installation | G3: See Notes in Cell Q3 | J3: =+A3 -> Monitoring of Carbon Monoxide (half hourly) | N3: Per Combustion Line | Q3: Notes:
A5: Please complete this tab for your plant if you have 1/2 hourly CO ELVs; otherwise, leave it blank and complete the CO 95% 10 min tab
Q7: User to add logic to complete Whole installation, Table A5:G18. From the data in Per Combustion Line, Table J6:O79, subject to No. of lines installed
A8: =+'Cover Page'!C39 -> 2025 | B8: 1/2 Hourly Reference Periods | E8: Daily Reference Periods
A9: mg/Nm3 | B9: 1/2 hourly CO ELV | C9: Monthly mean of half-hourly averages | D9: Highest half- hourly average | E9: Daily CO ELV | F9: Monthly mean of daily averages | G9: Highest daily average | J9: =+A8 -> 2025 | K9: mg/Nm3 | L9: Monthly mean of half-hourly averages | M9: Highest half- hourly average | N9: Monthly mean of daily averages | O9: Highest daily average
A10: Jan | B10: 100 | E10: 50 | J10: A1 | K10: Jan
A11: Feb | B11: =+B10 -> 100 | E11: =+E10 -> 50 | K11: Feb
A12: Mar | B12: =+B11 -> 100 | E12: =+E11 -> 50 | K12: Mar | Q12: Whole Installation table A5:G18:
A13: Apr | B13: 100 | E13: 50 | K13: Apr | Q13: Mean: for 1/2 hourly and daily periods calculate mean of values across all operational combustion lines for the month
A14: May | B14: 100 | E14: 50 | K14: May
A15: Jun | B15: 100 | E15: 50 | K15: Jun
A16: Jul | B16: 100 | E16: 50 | K16: Jul | Q16: Maximum: for 1/2 hourly and daily periods use the highest value across all operational combustion lines for the month
A17: Aug | B17: 100 | E17: 50 | K17: Aug
A18: Sep | B18: 100 | E18: 50 | K18: Sep
A19: Oct | B19: 100 | E19: 50 | K19: Oct
A20: Nov | B20: 100 | E20: 50 | K20: Nov
A21: Dec | B21: 100 | E21: 50 | K21: Dec
K22: Annual | L22: =AVERAGE(L10:L21) ->  | M22: =MAX(M10:M21) -> 0 | N22: =AVERAGE(N10:N21) ->  | O22: =MAX(O10:O21) -> 0
J24: =+A8 -> 2025 | K24: mg/Nm3 | L24: Monthly mean of half-hourly averages | M24: Highest half- hourly average | N24: Monthly mean of daily averages | O24: Highest daily average
J25: A2 | K25: Jan
K26: Feb
K27: Mar
K28: Apr
K29: May
K30: Jun
K31: Jul
K32: Aug
K33: Sep
K34: Oct
K35: Nov
K36: Dec
K37: Annual | L37: =AVERAGE(L25:L36) ->  | M37: =MAX(M25:M36) -> 0 | N37: =AVERAGE(N25:N36) ->  | O37: =MAX(O25:O36) -> 0
J39: =+A8 -> 2025 | K39: mg/Nm3 | L39: Monthly mean of half-hourly averages | M39: Highest half- hourly average | N39: Monthly mean of daily averages | O39: Highest daily average
J40: A3 | K40: Jan
K41: Feb
K42: Mar
K43: Apr
K44: May
K45: Jun
K46: Jul
K47: Aug
K48: Sep
K49: Oct
K50: Nov
A51: Comments : | K51: Dec
K52: Annual | L52: =AVERAGE(L40:L51) ->  | M52: =MAX(M40:M51) -> 0 | N52: =AVERAGE(N40:N51) ->  | O52: =MAX(O40:O51) -> 0
J54: =+A8 -> 2025 | K54: mg/Nm3 | L54: Monthly mean of half-hourly averages | M54: Highest half- hourly average | N54: Monthly mean of daily averages | O54: Highest daily average
J55: A4 | K55: Jan
K56: Feb
K57: Mar
K58: Apr
K59: May
K60: Jun
K61: Jul
K62: Aug
K63: Sep
K64: Oct
K65: Nov
K66: Dec
K67: Annual | L67: =AVERAGE(L55:L66) ->  | M67: =MAX(M55:M66) -> 0 | N67: =AVERAGE(N55:N66) ->  | O67: =MAX(O55:O66) -> 0
J69: =+A8 -> 2025 | K69: mg/Nm3 | L69: Monthly mean of half-hourly averages | M69: Highest half- hourly average | N69: Monthly mean of daily averages | O69: Highest daily average
J70: A5 | K70: Jan
K71: Feb
K72: Mar
K73: Apr
K74: May
K75: Jun
K76: Jul
K77: Aug
K78: Sep
K79: Oct
K80: Nov
K81: Dec
K82: Annual | L82: =AVERAGE(L70:L81) ->  | M82: =MAX(M70:M81) -> 0 | N82: =AVERAGE(N70:N81) ->  | O82: =MAX(O70:O81) -> 0

Sheet CO 95% 10 min
A1: =+'Cover Page'!$B$29 -> Annual Performance Report 2025 | E1: =+'Cover Page'!$B$33 -> Tyseley Energy from Waste Plant
A3: Monitoring of Carbon Monoxide (10-minute avg) | E3: Whole Installation | H3: See Notes in Cell S3 | J3: =+A3 -> Monitoring of Carbon Monoxide (10-minute avg) | O3: Per Combustion Line | Q3: Notes: | S3: Notes:
A5: Please complete this tab for your plant if you have 10-minute average CO ELVs; otherwise, leave it blank and complete the CO 0.5 hourly tab
S7: User to add logic to complete Whole installation, Table A5:H18. From the data in Per Combustion Line, Table K6:Q79, subject to No. of lines installed
A8: =+'Cover Page'!C39 -> 2025 | B8: 10-minute Reference Periods | F8: Daily Reference Periods
A9: mg/Nm3 | B9: 95%ile 10-min avg CO ELV | C9: Highest daily 95%ile 10-min average | D9: Monthly mean of 10-min averages | E9: Highest 10-min average | F9: Daily CO ELV | G9: Monthly mean of daily averages | H9: Highest daily average | K9: =+A8 -> 2025 | L9: mg/Nm3 | M9: Highest daily 95%ile 10-min average | N9: Monthly mean of 10-min averages | O9: Highest 10-min average | P9: Monthly mean of daily averages | Q9: Highest daily average
A10: Jan | B10: 150 | C10: =IF(M10="","",AVERAGE(M10,M25)) -> 51.45 | D10: =IF(N10="","",AVERAGE(N10,N25)) -> 10.3 | E10: =IF(O10="","",AVERAGE(O10,O25)) -> 459.95 | F10: 50 | G10: =IF(P10="","",AVERAGE(P10,P25)) -> 10.05 | H10: =IF(Q10="","",AVERAGE(Q10,Q25)) -> 15.3 | K10: A1 | L10: Jan | M10: 53.5 | N10: 11.6 | O10: 463 | P10: 11.3 | Q10: 16
A11: Feb | B11: =+B10 -> 150 | C11: =IF(M11="","",AVERAGE(M11,M26)) -> 68.8 | D11: =IF(N11="","",AVERAGE(N11,N26)) -> 9.75 | E11: =IF(O11="","",AVERAGE(O11,O26)) -> 554.5 | F11: =+F10 -> 50 | G11: =IF(P11="","",AVERAGE(P11,P26)) -> 9.65 | H11: =IF(Q11="","",AVERAGE(Q11,Q26)) -> 17.55 | L11: Feb | M11: 71.5 | N11: 10.3 | O11: 421.6 | P11: 10.3 | Q11: 19.4
A12: Mar | B12: =+B11 -> 150 | C12: 41.3 | D12: 9.4 | E12: 849.6 | F12: =+F11 -> 50 | G12: 9.25 | H12: 17.6 | L12: Mar | M12: 48.8 | N12: 10.5 | O12: 1243.9 | P12: 10.2 | Q12: 21.4 | S12: Whole Installation table A5:H18:
A13: Apr | B13: 150 | C13: 58.5 | D13: 8.95 | E13: 922.5 | F13: 50 | G13: 8.9 | H13: 19.85 | L13: Apr | M13: 22.7 | N13: 8.4 | O13: 582.1 | P13: 8.3 | Q13: 12.6 | S13: Mean: for 10-min and daily periods use average of all operational combustion lines.
A14: May | B14: 150 | C14: 74.85 | D14: 9.65 | E14: 794.05 | F14: 50 | G14: 9.6 | H14: 20.65 | L14: May | M14: 73.3 | N14: 9.8 | O14: 972.5 | P14: 9.7 | Q14: 23
A15: Jun | B15: 150 | C15: 101.05 | D15: 10.75 | E15: 487.9 | F15: 50 | G15: 10.8 | H15: 22.35 | L15: Jun | M15: 95.7 | N15: 11.3 | O15: 414.5 | P15: 11.3 | Q15: 21.1
A16: Jul | B16: 150 | C16: 107.45 | D16: 16.85 | E16: 639.65 | F16: 50 | G16: 16.9 | H16: 25.65 | L16: Jul | M16: 116.5 | N16: 18.7 | O16: 403.1 | P16: 18.7 | Q16: 28.2 | S16: Maximum: for 10-min and daily periods use the highest of all operational combustion lines in any month.
A17: Aug | B17: 150 | C17: 103.75 | D17: 12.1 | E17: 534.2 | F17: 50 | G17: 12.1 | H17: 24 | L17: Aug | M17: 91.1 | N17: 12.8 | O17: 277.7 | P17: 12.8 | Q17: 23.1
A18: Sep | B18: 150 | C18: 90.6 | D18: 13.6 | E18: 356.45 | F18: 50 | G18: 13.6 | H18: 22.95 | L18: Sep | M18: 54 | N18: 11.1 | O18: 240.9 | P18: 11.1 | Q18: 18.8
A19: Oct | B19: 150 | C19: 83.25 | D19: 12.95 | E19: 730.85 | F19: 50 | G19: 12.9 | H19: 21.7 | L19: Oct | M19: 101 | N19: 13.4 | O19: 467.7 | P19: 13.3 | Q19: 23.6
A20: Nov | B20: 150 | C20: 87.75 | D20: 14.6 | E20: 359.6 | F20: 50 | G20: 14.55 | H20: 23.5 | L20: Nov | M20: 80.1 | N20: 14.2 | O20: 206.2 | P20: 14.2 | Q20: 19.8
A21: Dec | B21: 150 | C21: 78.2 | D21: 11.9 | E21: 832.75 | F21: 50 | G21: 11.85 | H21: 23.15 | L21: Dec | M21: 76.5 | N21: 11.8 | O21: 1429 | P21: 11.7 | Q21: 23.7
L22: Annual | M22: =AVERAGE(M10:M21) -> 73.725 | N22: =AVERAGE(N10:N21) -> 11.99166667 | O22: =MAX(O10:O21) -> 1429 | P22: =AVERAGE(P10:P21) -> 11.90833333 | Q22: =MAX(Q10:Q21) -> 28.2
K24: =+A8 -> 2025 | L24: mg/Nm3 | M24: Highest daily 95%ile 10-min average | N24: Monthly mean of 10-min averages | O24: Highest 10-min average | P24: Monthly mean of daily averages | Q24: Highest daily average
K25: A2 | L25: Jan | M25: 49.4 | N25: 9 | O25: 456.9 | P25: 8.8 | Q25: 14.6
L26: Feb | M26: 66.1 | N26: 9.2 | O26: 687.4 | P26: 9 | Q26: 15.7
L27: Mar | M27: 33.8 | N27: 8.3 | O27: 455.3 | P27: 8.3 | Q27: 13.8
L28: Apr | M28: 94.3 | N28: 9.5 | O28: 1262.9 | P28: 9.5 | Q28: 27.1
L29: May | M29: 76.4 | N29: 9.5 | O29: 615.6 | P29: 9.5 | Q29: 18.3
L30: Jun | M30: 106.4 | N30: 10.2 | O30: 561.3 | P30: 10.3 | Q30: 23.6
L31: Jul | M31: 98.4 | N31: 15 | O31: 876.2 | P31: 15.1 | Q31: 23.1
L32: Aug | M32: 116.4 | N32: 11.4 | O32: 790.7 | P32: 11.4 | Q32: 24.9
L33: Sep | M33: 127.2 | N33: 16.1 | O33: 472 | P33: 16.1 | Q33: 27.1
L34: Oct | M34: 65.5 | N34: 12.5 | O34: 994 | P34: 12.5 | Q34: 19.8
L35: Nov | M35: 95.4 | N35: 15 | O35: 513 | P35: 14.9 | Q35: 27.2
L36: Dec | M36: 79.9 | N36: 12 | O36: 236.5 | P36: 12 | Q36: 22.6
L37: Annual | M37: =AVERAGE(M25:M36) -> 84.1 | N37: =AVERAGE(N25:N36) -> 11.475 | O37: =MAX(O25:O36) -> 1262.9 | P37: =AVERAGE(P25:P36) -> 11.45 | Q37: =MAX(Q25:Q36) -> 27.2
K39: =+A8 -> 2025 | L39: mg/Nm3 | M39: Highest daily 95%ile 10-min average | N39: Monthly mean of 10-min averages | O39: Highest 10-min average | P39: Monthly mean of daily averages | Q39: Highest daily average
K40: A3 | L40: Jan
L41: Feb
L42: Mar
L43: Apr
L44: May
L45: Jun
L46: Jul
L47: Aug
L48: Sep
L49: Oct
L50: Nov
A51: Comments : | L51: Dec
A52: Environment Agency explanatory note: The 10-minute average ELV is based on the “95th percentile”. In this case this means that 95% of the 10 minute averages in the relevant 24-hour period (i.e. 137) must be below 150 mg/Nm3, and 5% (i.e. 7) are allowed to be any value above 150 mg/Nm3. Whilst we expect operators to minimise CO emissions at all times, it is perfectly acceptable for the value of the maximum 10-minute average to be above 150 mg/Nm3, provided the 95th percentile ELV has been met for that period. | L52: Annual | M52: =AVERAGE(M40:M51) ->  | O52: =MAX(O40:O51) -> 0 | P52: =AVERAGE(P40:P51) ->  | Q52: =MAX(Q40:Q51) -> 0
K54: =+A8 -> 2025 | L54: mg/Nm3 | M54: Highest daily 95%ile 10-min average | N54: Monthly mean of 10-min averages | O54: Highest 10-min average | P54: Monthly mean of daily averages | Q54: Highest daily average
K55: A4 | L55: Jan
L56: Feb
L57: Mar
L58: Apr
L59: May
L60: Jun
L61: Jul
L62: Aug
L63: Sep
L64: Oct
L65: Nov
L66: Dec
L67: Annual | M67: =AVERAGE(M55:M66) ->  | O67: =MAX(O55:O66) -> 0 | P67: =AVERAGE(P55:P66) ->  | Q67: =MAX(Q55:Q66) -> 0
K69: =+A8 -> 2025 | L69: mg/Nm3 | M69: 95%ile 10-min avg maximum | N69: Monthly CO 10-min avg mean | O69: 10-min avg maximum | P69: Monthly daily mean | Q69: Monthly daily maximum
K70: A5 | L70: Jan
L71: Feb
L72: Mar
L73: Apr
L74: May
L75: Jun
L76: Jul
L77: Aug
L78: Sep
L79: Oct
L80: Nov
L81: Dec
L82: Annual | M82: =AVERAGE(M70:M81) ->  | O82: =MAX(O70:O81) -> 0 | P82: =AVERAGE(P70:P81) ->  | Q82: =MAX(Q70:Q81) -> 0

Sheet NH3
A1: =+'Cover Page'!$B$29 -> Annual Performance Report 2025 | E1: =+'Cover Page'!$B$33 -> Tyseley Energy from Waste Plant
A3: Monitoring of Ammnonia emissions | D3: Whole Installation | G3: See Notes in Cell Q3 | J3: =+A3 -> Monitoring of Ammnonia emissions | N3: Per Combustion Line | Q3: Notes:
Q4: User to add logic to complete Whole installation, Table A5:G18. From the data in Per Combustion Line, Table J6:O79, subject to No. of lines installed
A5: =+'Cover Page'!C39 -> 2025 | B5: 1/2 Hourly Reference Periods | E5: Daily Reference Periods
A6: mg/Nm3 | B6: 1/2 hourly NH3 ELV | C6: Monthly mean of half-hourly averages | D6: Highest half- hourly average | E6: Daily NH3 ELV | F6: Monthly mean of daily averages | G6: Highest daily average | J6: =+A5 -> 2025 | K6: mg/Nm3 | L6: Monthly mean of half-hourly averages | M6: Highest half- hourly average | N6: Monthly mean of daily averages | O6: Highest daily average
A7: Jan | B7: None | C7: =IF(L7="","",AVERAGE(L7,L22)) -> 1.05 | D7: =IF(M7="","",AVERAGE(M7,M22)) -> 7.9 | E7: 15 | F7: =IF(N7="","",AVERAGE(N7,N22)) -> 0.9 | G7: =IF(O7="","",AVERAGE(O7,O22)) -> 1.7 | J7: A1 | K7: Jan | L7: 1 | M7: 8.1 | N7: 0.9 | O7: 1.7
A8: Feb | B8: =+B7 -> None | C8: =IF(L8="","",AVERAGE(L8,L23)) -> 0.9 | D8: =IF(M8="","",AVERAGE(M8,M23)) -> 14 | E8: 15 | F8: =IF(N8="","",AVERAGE(N8,N23)) -> 0.8 | G8: =IF(O8="","",AVERAGE(O8,O23)) -> 1.55 | K8: Feb | L8: 0.8 | M8: 19.3 | N8: 0.7 | O8: 1.7
A9: Mar | B9: =+B8 -> None | C9: 0.8 | D9: 6.35 | E9: 15 | F9: 0.8 | G9: 1.4 | K9: Mar | L9: 0.7 | M9: 3.8 | N9: 0.7 | O9: 1.2 | Q9: Whole Installation table A5:G18:
A10: Apr | B10: None | C10: 0.2 | D10: 8.65 | E10: 15 | F10: 0.15 | G10: 0.9 | K10: Apr | L10: 0.3 | M10: 9.7 | N10: 0.2 | O10: 0.9 | Q10: Mean: for 1/2 hourly and daily periods calculate mean of values across all operational combustion lines for the month
A11: May | B11: None | C11: 0.35 | D11: 10.85 | E11: 15 | F11: 0.35 | G11: 1.45 | K11: May | L11: 0.5 | M11: 16.9 | N11: 0.5 | O11: 1.6
A12: Jun | B12: None | C12: 0.5 | D12: 7.4 | E12: 15 | F12: 0.45 | G12: 2.15 | K12: Jun | L12: 0.6 | M12: 6.6 | N12: 0.5 | O12: 2.3
A13: Jul | B13: None | C13: 4.2 | D13: 25.4 | E13: 15 | F13: 4.1 | G13: 10.6 | K13: Jul | L13: 4.8 | M13: 38.4 | N13: 4.7 | O13: 14.1 | Q13: Maximum: for 1/2 hourly and daily periods use the highest value across all operational combustion lines for the month
A14: Aug | B14: None | C14: 1.55 | D14: 9.35 | E14: 15 | F14: 1.45 | G14: 3.25 | K14: Aug | L14: 1.7 | M14: 12.7 | N14: 1.6 | O14: 4.3
A15: Sep | B15: None | C15: 1 | D15: 8.8 | E15: 15 | F15: 0.95 | G15: 2.6 | K15: Sep | L15: 1.1 | M15: 7.5 | N15: 1.1 | O15: 2.6
A16: Oct | B16: None | C16: 0.2 | D16: 3.35 | E16: 15 | F16: 0.2 | G16: 0.6 | K16: Oct | L16: 0.3 | M16: 4.4 | N16: 0.3 | O16: 0.8
A17: Nov | B17: None | C17: 1.35 | D17: 10 | E17: 15 | F17: 1.3 | G17: 3.15 | K17: Nov | L17: 1.3 | M17: 11.7 | N17: 1.3 | O17: 3.4
A18: Dec | B18: None | C18: 0.45 | D18: 8.95 | E18: 15 | F18: 0.45 | G18: 1.5 | K18: Dec | L18: 0.4 | M18: 8.4 | N18: 0.4 | O18: 1.2
K19: Annual | L19: =AVERAGE(L7:L18) -> 1.125 | M19: =MAX(M7:M18) -> 38.4 | N19: =AVERAGE(N7:N18) -> 1.075 | O19: =MAX(O7:O18) -> 14.1
J21: =+A5 -> 2025 | K21: mg/Nm3 | L21: Monthly mean of half-hourly averages | M21: Highest half- hourly average | N21: Monthly mean of daily averages | O21: Highest daily average
J22: A2 | K22: Jan | L22: 1.1 | M22: 7.7 | N22: 0.9 | O22: 1.7
K23: Feb | L23: 1 | M23: 8.7 | N23: 0.9 | O23: 1.4
K24: Mar | L24: 0.9 | M24: 8.9 | N24: 0.9 | O24: 1.6
K25: Apr | L25: 0.1 | M25: 7.6 | N25: 0.1 | O25: 0.9
K26: May | L26: 0.2 | M26: 4.8 | N26: 0.2 | O26: 1.3
K27: Jun | L27: 0.4 | M27: 8.2 | N27: 0.4 | O27: 2
K28: Jul | L28: 3.6 | M28: 12.4 | N28: 3.5 | O28: 7.1
K29: Aug | L29: 1.4 | M29: 6 | N29: 1.3 | O29: 2.2
K30: Sep | L30: 0.9 | M30: 10.1 | N30: 0.8 | O30: 2.6
K31: Oct | L31: 0.1 | M31: 2.3 | N31: 0.1 | O31: 0.4
K32: Nov | L32: 1.4 | M32: 8.3 | N32: 1.3 | O32: 2.9
K33: Dec | L33: 0.5 | M33: 9.5 | N33: 0.5 | O33: 1.8
K34: Annual | L34: =AVERAGE(L22:L33) -> 0.9666666667 | M34: =MAX(M22:M33) -> 12.4 | N34: =AVERAGE(N22:N33) -> 0.9083333333 | O34: =MAX(O22:O33) -> 7.1
J36: =+A5 -> 2025 | K36: mg/Nm3 | L36: Monthly mean of half-hourly averages | M36: Highest half- hourly average | N36: Monthly mean of daily averages | O36: Highest daily average
J37: A3 | K37: Jan
K38: Feb
K39: Mar
K40: Apr
K41: May
K42: Jun
K43: Jul
K44: Aug
K45: Sep
K46: Oct
K47: Nov
A48: Comments : | K48: Dec
A49: An indicated ELV value of zero in the table above means that no ammonia limit is/was set in the permit. | K49: Annual | L49: =AVERAGE(L37:L48) ->  | M49: =MAX(M37:M48) -> 0 | N49: =AVERAGE(N37:N48) ->  | O49: =MAX(O37:O48) -> 0
J51: =+A5 -> 2025 | K51: mg/Nm3 | L51: Monthly mean of half-hourly averages | M51: Highest half- hourly average | N51: Monthly mean of daily averages | O51: Highest daily average
J52: A4 | K52: Jan
K53: Feb
K54: Mar
K55: Apr
K56: May
K57: Jun
K58: Jul
K59: Aug
K60: Sep
K61: Oct
K62: Nov
K63: Dec
K64: Annual | L64: =AVERAGE(L52:L63) ->  | M64: =MAX(M52:M63) -> 0 | N64: =AVERAGE(N52:N63) ->  | O64: =MAX(O52:O63) -> 0
J66: =+A5 -> 2025 | K66: mg/Nm3 | L66: Monthly mean of half-hourly averages | M66: Highest half- hourly average | N66: Monthly mean of daily averages | O66: Highest daily average
J67: A5 | K67: Jan
K68: Feb
K69: Mar
K70: Apr
K71: May
K72: Jun
K73: Jul
K74: Aug
K75: Sep
K76: Oct
K77: Nov
K78: Dec
K79: Annual | L79: =AVERAGE(L67:L78) ->  | M79: =MAX(M67:M78) -> 0 | N79: =AVERAGE(N67:N78) ->  | O79: =MAX(O67:O78) -> 0

Sheet Template changes log
A1: Log of changes to template (Environment Agency use only)
A3: Date | B3: Description of change | C3: New version number and date
A4: 2024-01-16 | B4: Air (periodic) tab: corrected default O2 reference from 6 to 11% | C4: Version 23.5a (for incinerators) - 16/01/2024
A5: 2024-09-23 | B5: Air (periodic) tab: corrected symbol for Thallium to Tl
A6: 2024-09-23 | B6: Air (periodic) tab: removed last year's references to different emission limit values applying from 03/12/23 and updated all relevant ELVs
A7: 2024-09-23 | B7: Tabs for continuously monitored pollutants (HCl, SO2 etc.): changed terminology in table headings to improve clarity
A8: 2024-09-23 | B8: Tabs for continuously monitored pollutants (HCl, SO2 etc.): removed last year's references to different emission limit values applying from 03/12/23 and updated all relevant ELVs
A9: 2024-09-23 | B9: Perf 1 tab: updated formula for water usage to report m3 rather than litres and corrected error with formula copying operator name
A10: 2024-09-23 | B10: Operational Summary tab: table added on start-ups and shut-downs
A11: 2024-09-23 | B11: Operational Summary tab: table added on dioxins and mercury protocols
A12: 2024-09-23 | B12: Operational Summary tab: table added on AST, QAL 2 and calibration functions
A13: 2024-09-23 | B13: CO2 N2O tab: various changes made to notes to reflect the fact that most plants should now have calibrated CEMS and flow meters + some have C14 samplers and more up to date industry data | C13: Version 24a (for incinerators) - 23/09/24
A14: 2024-11-08 | B14: CO2 N2O tab: Changed the N2O CO2 equivalence factor from 298 to 265 in line with recently updated government greenhouse gas figures: https://www.gov.uk/government/publications/greenhouse-gas-reporting-conversion-factors-2024
A15: 2024-11-08 | B15: CO2 N2O tab: Added an additional requirement for municipal EfW plants to state the yearly average biogenic percentage of the waste by mass, and reference to a document which sets out a methodology for calculating NCV of waste from the results of C14 sampling.
A16: 2024-11-08 | B16: Permit Compliance tab: Two additional columns added + explanatory notes to the table entitled "Summary of non-compliances under the permit" to allow CCS scores to be stated where relevant.
A17: 2024-11-08 | B17: Residue Quality tab: Note added explaining application of TOC and LOI limits and asking operators to report both metrics where measured. | C17: Version 24.1a (for incinerators) - 08/11/24
A18: 2024-11-27 | B18: Operational Summary tab: table added on start-ups and shut-downs | C18: Version 24.2a (for incinerators) - 27/11/24
A19: 2025-11-27 | B19: Cover Page: Print as PDF and Print Report and pdf buttons deleted and blank columns removed; contents page deleted | C19: Version 25.1a (for incinerators) - 27/11/25
A20: 2025-11-27 | B20: Residue Quality tab renamed to "Residues", and Summary of residue handling table moved from Operational Summary tab to Residues tab.
A21: 2025-11-27 | B21: Various changes made to the Operational Data tab including • Reformatting of the rows under the Operational data heading (Rows 3-8) to make it clearer what information is required. • Amendment of the rows under the Energy Usage / Export heading (Rows 26-32) to calculate an “indicative parasitic load” (now excluding energy imported) • Amendment of the unit for gas usage from cubic feet to cubic metres (Row 50) • Some amendments to the first 2 notes and other minor edits • Deleted "Overall Availability, mean avg. of all lines, hrs" row
A22: 2025-11-27 | B22: Operational Summary tab: Note added requiring all emergency shut-downs be listed, irrespective of whether or not they were reportable.
A23: 2025-11-27 | B23: CO2 N2O tab: Note added to ask operators to ensure that relevant data reported here matches that which will be submitted under the Pollution Inventory
